{"text_format":"1","workbook":"xlsx","n_sheets":3,"sheets":["Rekapitulace stavby","2021-064 - Chrást - Bezdě...","Pokyny pro vyplnění"],"not_rendered":{"charts":0,"images":1,"macros":0,"external_links":0,"defined_names":6,"comments":0,"pivot_tables":0},"unopened":[],"bounds":{"document_bytes":16777216,"sheet_cells":100000,"rows_first":2000,"rows_last":500,"rows_between":2000,"halvings":0,"cell_chars":16384,"cell_head_chars":4096},"cells_cut":0,"cells_raw":0,"read":"whole","date_system":"1900"}

{"sheet":"Rekapitulace stavby","index":0,"n_rows":55,"n_cols":90,"rows_kept":55,"cut":false,"hidden":false,"merged":[[29,22,29,30],[29,36,29,40],[29,11,29,15],[30,22,30,30],[30,11,30,15],[31,22,31,30],[31,36,31,40],[31,11,31,15],[4,56,31,56],[4,10,4,40],[5,10,5,40],[13,4,13,35],[22,4,22,39],[25,36,25,40],[27,11,27,15],[27,22,27,30],[27,36,27,40],[28,22,28,30],[28,36,28,40],[28,11,28,15],[54,39,54,41],[54,32,54,38],[54,3,54,7],[54,9,54,31],[53,32,53,38],[53,39,53,41],[1,43,1,56],[51,2,51,6],[51,8,51,31],[51,32,51,38],[51,39,51,41],[44,11,44,40],[46,38,46,39],[48,38,48,41],[48,44,50,45],[49,38,49,41],[32,22,32,30],[32,36,32,40],[32,11,32,15],[34,23,34,27],[34,36,34,40],[30,36,30,40]]}
["Export Komplet",null,null,null,null,null,null,null,null,null,null,null,null,null,null,null,null,null,null,null,null,null,null,null,null,null,null,null,null,null,null,null,null,null,null,null,null,null,null,null,null,null,null,null,null,null,null,null,null,null,null,"VZ","2.0","ZAMOK",null,null,null,null,null,null,null,null,null,null,null,null,null,null,null,null,null,"False","False","{21436dea-8f0b-455a-9641-d06a7067f1c1}"]
[null,null,null,null,null,null,null,null,null,null,null,null,null,null,null,null,null,null,null,null,null,null,null,null,null,null,null,null,null,null,null,null,null,null,null,null,null,null,null,null,null,null,null,null,null,null,null,null,null,null,null,null,null,null,null,null,null,null,null,null,null,null,null,null,null,null,null,null,null,null,"0,01","21"]
[null,null,null,null,null,null,null,null,null,null,null,null,null,null,null,null,null,null,null,null,null,null,null,null,null,null,null,null,null,null,null,null,null,null,null,null,null,null,null,null,null,null,null,null,null,null,null,null,null,null,null,null,null,null,null,null,null,null,null,null,null,null,null,null,null,null,null,null,null,null,"0,01","15"]
[null,null,null,"REKAPITULACE STAVBY",null,null,null,null,null,null,null,null,null,null,null,null,null,null,null,null,null,null,null,null,null,null,null,null,null,null,null,null,null,null,null,null,null,null,null,null,null,null,null,null,"v ---  níže se nacházejí doplnkové a pomocné údaje k sestavám  --- v",null,null,null,null,null,null,null,null,null,null,null,"Návod na vyplnění",null,null,null,null,null,null,null,null,null,null,null,null,null,"0,001"]
[null,null,null,"Kód:",null,null,null,null,null,null,"2021-064",null,null,null,null,null,null,null,null,null,null,null,null,null,null,null,null,null,null,null,null,null,null,null,null,null,null,null,null,null,null,null,null,null,null,null,null,null,null,null,null,null,null,null,null,null,"Měnit lze pouze buňky se žlutým podbarvením!\r\n\r\n1) v Rekapitulaci stavby vyplňte údaje o Uchazeči (přenesou se do ostatních sestav i v jiných listech)\r\n\r\n2) na vybraných listech vyplňte v sestavě Soupis prací ceny u položek",null,null,null,null,null,null,null,null,null,null,null,null,null,"0,01"]
[null,null,null,"Stavba:",null,null,null,null,null,null,"Chrást - Bezděčín, vodovodní přivaděč",null,null,null,null,null,null,null,null,null,null,null,null,null,null,null,null,null,null,null,null,null,null,null,null,null,null,null,null,null,null,null,null,null,null,null,null,null,null,null,null,null,null,null,null,null,null,null,null,null,null,null,null,null,null,null,null,null,null,null,"0,01"]
[null,null,null,"KSO:",null,null,null,null,null,null,"",null,null,null,null,null,null,null,null,null,null,null,null,null,null,null,null,null,null,null,null,null,null,null,null,null,"CC-CZ:",null,null,"",null,null,null,null,null,null,null,null,null,null,null,null,null,null,null,null,null,null,null,null,null,null,null,null,null,null,null,null,null,null,"0,01"]
[null,null,null,"Místo:",null,null,null,null,null,null," ",null,null,null,null,null,null,null,null,null,null,null,null,null,null,null,null,null,null,null,null,null,null,null,null,null,"Datum:",null,null,"26. 1. 2022",null,null,null,null,null,null,null,null,null,null,null,null,null,null,null,null,null,null,null,null,null,null,null,null,null,null,null,null,null,null,"0,01"]
[null,null,null,null,null,null,null,null,null,null,null,null,null,null,null,null,null,null,null,null,null,null,null,null,null,null,null,null,null,null,null,null,null,null,null,null,null,null,null,null,null,null,null,null,null,null,null,null,null,null,null,null,null,null,null,null,null,null,null,null,null,null,null,null,null,null,null,null,null,null,"0,01"]
[null,null,null,"Zadavatel:",null,null,null,null,null,null,null,null,null,null,null,null,null,null,null,null,null,null,null,null,null,null,null,null,null,null,null,null,null,null,null,null,"IČ:",null,null,"",null,null,null,null,null,null,null,null,null,null,null,null,null,null,null,null,null,null,null,null,null,null,null,null,null,null,null,null,null,null,"0,01"]
[null,null,null,null,"Vodovody a kanalizace Mladá Boleslav a.s.",null,null,null,null,null,null,null,null,null,null,null,null,null,null,null,null,null,null,null,null,null,null,null,null,null,null,null,null,null,null,null,"DIČ:",null,null,"",null,null,null,null,null,null,null,null,null,null,null,null,null,null,null,null,null,null,null,null,null,null,null,null,null,null,null,null,null,null,"0,01"]
[null,null,null,null,null,null,null,null,null,null,null,null,null,null,null,null,null,null,null,null,null,null,null,null,null,null,null,null,null,null,null,null,null,null,null,null,null,null,null,null,null,null,null,null,null,null,null,null,null,null,null,null,null,null,null,null,null,null,null,null,null,null,null,null,null,null,null,null,null,null,"0,01"]
[null,null,null,"Uchazeč:",null,null,null,null,null,null,null,null,null,null,null,null,null,null,null,null,null,null,null,null,null,null,null,null,null,null,null,null,null,null,null,null,"IČ:",null,null,"Vyplň údaj",null,null,null,null,null,null,null,null,null,null,null,null,null,null,null,null,null,null,null,null,null,null,null,null,null,null,null,null,null,null,"0,01"]
[null,null,null,null,"Vyplň údaj",null,null,null,null,null,null,null,null,null,null,null,null,null,null,null,null,null,null,null,null,null,null,null,null,null,null,null,null,null,null,null,"DIČ:",null,null,"Vyplň údaj",null,null,null,null,null,null,null,null,null,null,null,null,null,null,null,null,null,null,null,null,null,null,null,null,null,null,null,null,null,null,"0,01"]
[null,null,null,null,null,null,null,null,null,null,null,null,null,null,null,null,null,null,null,null,null,null,null,null,null,null,null,null,null,null,null,null,null,null,null,null,null,null,null,null,null,null,null,null,null,null,null,null,null,null,null,null,null,null,null,null,null,null,null,null,null,null,null,null,null,null,null,null,null,null,"False"]
[null,null,null,"Projektant:",null,null,null,null,null,null,null,null,null,null,null,null,null,null,null,null,null,null,null,null,null,null,null,null,null,null,null,null,null,null,null,null,"IČ:",null,null,"",null,null,null,null,null,null,null,null,null,null,null,null,null,null,null,null,null,null,null,null,null,null,null,null,null,null,null,null,null,null,"False"]
[null,null,null,null,"VEDU VODU s.r.o.",null,null,null,null,null,null,null,null,null,null,null,null,null,null,null,null,null,null,null,null,null,null,null,null,null,null,null,null,null,null,null,"DIČ:",null,null,"",null,null,null,null,null,null,null,null,null,null,null,null,null,null,null,null,null,null,null,null,null,null,null,null,null,null,null,null,null,null,"True"]
[null,null,null,null,null,null,null,null,null,null,null,null,null,null,null,null,null,null,null,null,null,null,null,null,null,null,null,null,null,null,null,null,null,null,null,null,null,null,null,null,null,null,null,null,null,null,null,null,null,null,null,null,null,null,null,null,null,null,null,null,null,null,null,null,null,null,null,null,null,null,"0,01"]
[null,null,null,"Zpracovatel:",null,null,null,null,null,null,null,null,null,null,null,null,null,null,null,null,null,null,null,null,null,null,null,null,null,null,null,null,null,null,null,null,"IČ:",null,null,"",null,null,null,null,null,null,null,null,null,null,null,null,null,null,null,null,null,null,null,null,null,null,null,null,null,null,null,null,null,null,"0,01"]
[null,null,null,null,"ing.Evžen Kozák",null,null,null,null,null,null,null,null,null,null,null,null,null,null,null,null,null,null,null,null,null,null,null,null,null,null,null,null,null,null,null,"DIČ:",null,null,"",null,null,null,null,null,null,null,null,null,null,null,null,null,null,null,null,null,null,null,null,null,null,null,null,null,null,null,null,null,null,"False"]
[]
[null,null,null,"Poznámka:"]
[null,null,null,null,"Soupis prací je sestaven s využitím Cenové soustavy ÚRS. Položky, které pochází z této cenové soustavy, jsou ve sloupci 'Cenová soustava' označeny popisem 'CS ÚRS' a úrovní příslušného kalendářního pololetí. Veškeré další informace vymezující popis a podmínky použití těchto položek z Cenové soustavy, které nejsou uvedeny přímo v soupisu prací, jsou neomezeně dálkově k dispozici na webu podminky.urs.cz."]
[]
[]
[null,null,null,"Cena bez DPH",null,null,null,null,null,null,null,null,null,null,null,null,null,null,null,null,null,null,null,null,null,null,null,null,null,null,null,null,null,null,null,null,{"$f":"ROUND(AG54,2)","v":0}]
[]
[null,null,null,null,null,null,null,null,null,null,null,"Sazba daně",null,null,null,null,null,null,null,null,null,null,"Základ daně",null,null,null,null,null,null,null,null,null,null,null,null,null,"Výše daně"]
[null,null,null,"DPH",null,"základní",null,null,null,null,null,0.21,null,null,null,null,null,null,null,null,null,null,{"$f":"ROUND(AZ54, 2)","v":0},null,null,null,null,null,null,null,null,null,null,null,null,null,{"$f":"ROUND(AV54, 2)","v":0}]
[null,null,null,null,null,"snížená",null,null,null,null,null,0.15,null,null,null,null,null,null,null,null,null,null,{"$f":"ROUND(BA54, 2)","v":0},null,null,null,null,null,null,null,null,null,null,null,null,null,{"$f":"ROUND(AW54, 2)","v":0}]
[null,null,null,null,null,"zákl. přenesená",null,null,null,null,null,0.21,null,null,null,null,null,null,null,null,null,null,{"$f":"ROUND(BB54, 2)","v":0},null,null,null,null,null,null,null,null,null,null,null,null,null,0]
[null,null,null,null,null,"sníž. přenesená",null,null,null,null,null,0.15,null,null,null,null,null,null,null,null,null,null,{"$f":"ROUND(BC54, 2)","v":0},null,null,null,null,null,null,null,null,null,null,null,null,null,0]
[null,null,null,null,null,"nulová",null,null,null,null,null,0,null,null,null,null,null,null,null,null,null,null,{"$f":"ROUND(BD54, 2)","v":0},null,null,null,null,null,null,null,null,null,null,null,null,null,0]
[]
[null,null,null,"Cena s DPH",null,null,null,null,null,null,null,null,null,null,null,null,null,null,null,"v",null,null,null,"CZK",null,null,null,null,null,null,null,null,null,null,null,null,{"$f":"SUM(AK26:AK33)","v":0}]
[]
[]
[]
[]
[]
[]
[null,null,"REKAPITULACE OBJEKTŮ STAVBY A SOUPISŮ PRACÍ"]
[]
[null,null,"Kód:",null,null,null,null,null,null,null,null,{"$f":"K5","v":"2021-064"}]
[null,null,"Stavba:",null,null,null,null,null,null,null,null,{"$f":"K6","v":"Chrást - Bezděčín, vodovodní přivaděč"}]
[]
[null,null,"Místo:",null,null,null,null,null,null,null,null,{"$f":"IF(K8=\"\",\"\",K8)","v":" "},null,null,null,null,null,null,null,null,null,null,null,null,null,null,null,null,null,null,null,null,null,null,"Datum:",null,null,null,{"$f":"IF(AN8= \"\",\"\",AN8)","v":"26. 1. 2022"}]
[]
[null,null,"Zadavatel:",null,null,null,null,null,null,null,null,{"$f":"IF(E11= \"\",\"\",E11)","v":"Vodovody a kanalizace Mladá Boleslav a.s."},null,null,null,null,null,null,null,null,null,null,null,null,null,null,null,null,null,null,null,null,null,null,"Projektant:",null,null,null,{"$f":"IF(E17=\"\",\"\",E17)","v":"VEDU VODU s.r.o."},null,null,null,null,null,"Informatívní údaje z listů zakázek"]
[null,null,"Uchazeč:",null,null,null,null,null,null,null,null,{"$f":"IF(E14= \"Vyplň údaj\",\"\",E14)","v":""},null,null,null,null,null,null,null,null,null,null,null,null,null,null,null,null,null,null,null,null,null,null,"Zpracovatel:",null,null,null,{"$f":"IF(E20=\"\",\"\",E20)","v":"ing.Evžen Kozák"}]
[]
[null,null,"Kód",null,null,null,null,null,"Popis",null,null,null,null,null,null,null,null,null,null,null,null,null,null,null,null,null,null,null,null,null,null,null,"Cena bez DPH [CZK]",null,null,null,null,null,null,"Cena s DPH [CZK]",null,null,"Typ",null,"z toho Ostat.\r\nnáklady [CZK]","DPH [CZK]","Normohodiny [h]","DPH základní [CZK]","DPH snížená [CZK]","DPH základní přenesená\r\n[CZK]","DPH snížená přenesená\r\n[CZK]","Základna\r\nDPH základní","Základna\r\nDPH snížená","Základna\r\nDPH zákl. přenesená","Základna\r\nDPH sníž. přenesená","Základna\r\nDPH nulová"]
[]
[null,null,"Náklady stavby celkem",null,null,null,null,null,null,null,null,null,null,null,null,null,null,null,null,null,null,null,null,null,null,null,null,null,null,null,null,null,{"$f":"ROUND(AG55,2)","v":0},null,null,null,null,null,null,{"$f":"SUM(AG54,AT54)","v":0},null,null,"",null,{"$f":"ROUND(AS55,2)","v":0},{"$f":"ROUND(SUM(AV54:AW54),2)","v":0},{"$f":"ROUND(AU55,5)","v":0},{"$f":"ROUND(AZ54*L29,2)","v":0},{"$f":"ROUND(BA54*L30,2)","v":0},{"$f":"ROUND(BB54*L29,2)","v":0},{"$f":"ROUND(BC54*L30,2)","v":0},{"$f":"ROUND(AZ55,2)","v":0},{"$f":"ROUND(BA55,2)","v":0},{"$f":"ROUND(BB55,2)","v":0},{"$f":"ROUND(BC55,2)","v":0},{"$f":"ROUND(BD55,2)","v":0},null,null,null,null,null,null,null,null,null,null,null,null,null,null,"D","0",null,"IMPORT","{21436dea-8f0b-455a-9641-d06a7067f1c1}","{00000000-0000-0000-0000-000000000000}",null,null,null,null,null,null,null,null,null,null,null,null,null,""]
["/",null,null,"2021-064",null,null,null,null,null,"Chrást - Bezděčín, vodovodní přivaděč",null,null,null,null,null,null,null,null,null,null,null,null,null,null,null,null,null,null,null,null,null,null,{"$f":"'2021-064 - Chrást - Bezdě...'!J28","v":0},null,null,null,null,null,null,{"$f":"SUM(AG55,AT55)","v":0},null,null,"STA",null,0,{"$f":"ROUND(SUM(AV55:AW55),2)","v":0},{"$f":"'2021-064 - Chrást - Bezdě...'!P86","v":0},{"$f":"'2021-064 - Chrást - Bezdě...'!J31","v":0},{"$f":"'2021-064 - Chrást - Bezdě...'!J32","v":0},{"$f":"'2021-064 - Chrást - Bezdě...'!J33","v":0},{"$f":"'2021-064 - Chrást - Bezdě...'!J34","v":0},{"$f":"'2021-064 - Chrást - Bezdě...'!F31","v":0},{"$f":"'2021-064 - Chrást - Bezdě...'!F32","v":0},{"$f":"'2021-064 - Chrást - Bezdě...'!F33","v":0},{"$f":"'2021-064 - Chrást - Bezdě...'!F34","v":0},{"$f":"'2021-064 - Chrást - Bezdě...'!F35","v":0},null,null,null,null,null,null,null,null,null,null,null,null,null,null,null,"1","###NOINSERT###","IMPORT","{21436dea-8f0b-455a-9641-d06a7067f1c1}","{00000000-0000-0000-0000-000000000000}",null,null,null,null,null,null,null,null,null,null,null,null,null,""]

{"sheet":"2021-064 - Chrást - Bezdě...","index":1,"n_rows":281,"n_cols":65,"rows_kept":281,"cut":false,"hidden":false,"merged":[[77,4,77,7],[1,11,1,21],[6,4,6,7],[15,4,15,7],[24,4,24,7],[45,4,45,7]]}
[]
[null,null,null,null,null,null,null,null,null,null,null,null,null,null,null,null,null,null,null,null,null,null,null,null,null,null,null,null,null,null,null,null,null,null,null,null,null,null,null,null,null,null,null,null,null,"{21436dea-8f0b-455a-9641-d06a7067f1c1}"]
[null,null,null,null,null,null,null,null,null,null,null,null,null,null,null,null,null,null,null,null,null,null,null,null,null,null,null,null,null,null,null,null,null,null,null,null,null,null,null,null,null,null,null,null,null,"2"]
[null,null,null,"KRYCÍ LIST SOUPISU PRACÍ",null,null,null,null,null,null,null,null,"v ---  níže se nacházejí doplnkové a pomocné údaje k sestavám  --- v",null,null,null,null,null,null,null,null,null,null,null,null,null,null,null,null,null,null,null,null,null,null,null,null,null,null,null,null,null,null,null,null,"False"]
[]
[null,null,null,"Stavba:"]
[null,null,null,null,"Chrást - Bezděčín, vodovodní přivaděč"]
[]
[null,null,null,"KSO:",null,"",null,null,"CC-CZ:",""]
[null,null,null,"Místo:",null," ",null,null,"Datum:",{"$f":"'Rekapitulace stavby'!AN8","v":"26. 1. 2022"}]
[]
[null,null,null,"Zadavatel:",null,null,null,null,"IČ:",""]
[null,null,null,null,"Vodovody a kanalizace Mladá Boleslav a.s.",null,null,null,"DIČ:",""]
[]
[null,null,null,"Uchazeč:",null,null,null,null,"IČ:",{"$f":"'Rekapitulace stavby'!AN13","v":"Vyplň údaj"}]
[null,null,null,null,{"$f":"'Rekapitulace stavby'!E14","v":"Vyplň údaj"},null,null,null,"DIČ:",{"$f":"'Rekapitulace stavby'!AN14","v":"Vyplň údaj"}]
[]
[null,null,null,"Projektant:",null,null,null,null,"IČ:",""]
[null,null,null,null,"VEDU VODU s.r.o.",null,null,null,"DIČ:",""]
[]
[null,null,null,"Zpracovatel:",null,null,null,null,"IČ:",""]
[null,null,null,null,"ing.Evžen Kozák",null,null,null,"DIČ:",""]
[]
[null,null,null,"Poznámka:"]
[null,null,null,null,"Soupis prací je sestaven s využitím Cenové soustavy ÚRS. Položky, které pochází z této cenové soustavy, jsou ve sloupci 'Cenová soustava' označeny popisem 'CS ÚRS' a úrovní příslušného kalendářního pololetí. Veškeré další informace vymezující popis a podmínky použití těchto položek z Cenové soustavy, které nejsou uvedeny přímo v soupisu prací, jsou neomezeně dálkově k dispozici na webu podminky.urs.cz."]
[]
[]
[null,null,null,"Cena bez DPH",null,null,null,null,null,{"$f":"ROUND(J86, 2)","v":0}]
[]
[null,null,null,null,null,"Základ daně",null,null,"Sazba daně","Výše daně"]
[null,null,null,"DPH","základní",{"$f":"ROUND((SUM(BE86:BE281)),  2)","v":0},null,null,0.21,{"$f":"ROUND(((SUM(BE86:BE281))*I31),  2)","v":0}]
[null,null,null,null,"snížená",{"$f":"ROUND((SUM(BF86:BF281)),  2)","v":0},null,null,0.15,{"$f":"ROUND(((SUM(BF86:BF281))*I32),  2)","v":0}]
[null,null,null,null,"zákl. přenesená",{"$f":"ROUND((SUM(BG86:BG281)),  2)","v":0},null,null,0.21,{"$f":"0","v":0}]
[null,null,null,null,"sníž. přenesená",{"$f":"ROUND((SUM(BH86:BH281)),  2)","v":0},null,null,0.15,{"$f":"0","v":0}]
[null,null,null,null,"nulová",{"$f":"ROUND((SUM(BI86:BI281)),  2)","v":0},null,null,0,{"$f":"0","v":0}]
[]
[null,null,null,"Cena s DPH",null,null,"v","CZK",null,{"$f":"SUM(J28:J35)","v":0}]
[]
[]
[]
[]
[]
[null,null,"REKAPITULACE ČLENĚNÍ SOUPISU PRACÍ"]
[]
[null,null,"Stavba:"]
[null,null,null,null,{"$f":"E7","v":"Chrást - Bezděčín, vodovodní přivaděč"}]
[]
[null,null,"Místo:",null,null,{"$f":"F10","v":" "},null,null,"Datum:",{"$f":"IF(J10=\"\",\"\",J10)","v":"26. 1. 2022"}]
[]
[null,null,"Zadavatel:",null,null,{"$f":"E13","v":"Vodovody a kanalizace Mladá Boleslav a.s."},null,null,"Projektant:",{"$f":"E19","v":"VEDU VODU s.r.o."}]
[null,null,"Uchazeč:",null,null,{"$f":"IF(E16=\"\",\"\",E16)","v":"Vyplň údaj"},null,null,"Zpracovatel:",{"$f":"E22","v":"ing.Evžen Kozák"}]
[]
[null,null,"Kód dílu - Popis",null,null,null,null,null,null,"Cena celkem [CZK]"]
[]
[null,null,"Náklady stavby celkem",null,null,null,null,null,null,{"$f":"J86","v":0},null,null,null,null,null,null,null,null,null,null,null,null,null,null,null,null,null,null,null,null,null,null,null,null,null,null,null,null,null,null,null,null,null,null,null,null,"-1"]
[null,null,null,"HSV - Práce a dodávky HSV",null,null,null,null,null,{"$f":"J87","v":0}]
[null,null,null,"    1 - Zemní práce",null,null,null,null,null,{"$f":"J88","v":0}]
[null,null,null,"    2 - Zakládání",null,null,null,null,null,{"$f":"J157","v":0}]
[null,null,null,"    4 - Vodorovné konstrukce",null,null,null,null,null,{"$f":"J160","v":0}]
[null,null,null,"    5 - Komunikace pozemní",null,null,null,null,null,{"$f":"J163","v":0}]
[null,null,null,"    8 - Trubní vedení",null,null,null,null,null,{"$f":"J196","v":0}]
[null,null,null,"    9 - Ostatní konstrukce a práce, bourání",null,null,null,null,null,{"$f":"J237","v":0}]
[null,null,null,"    998 - Přesun hmot",null,null,null,null,null,{"$f":"J249","v":0}]
[null,null,null,"VRN - Vedlejší a ostatní rozpočtové náklady",null,null,null,null,null,{"$f":"J261","v":0}]
[null,null,null,"    VRN1 - Průzkumné, geodetické a projektové práce",null,null,null,null,null,{"$f":"J262","v":0}]
[null,null,null,"    VRN3 - Zařízení staveniště",null,null,null,null,null,{"$f":"J267","v":0}]
[null,null,null,"    VRN4 - Inženýrská činnost",null,null,null,null,null,{"$f":"J275","v":0}]
[null,null,null,"    VRN9 - Ostatní náklady",null,null,null,null,null,{"$f":"J280","v":0}]
[]
[]
[]
[]
[]
[]
[null,null,"SOUPIS PRACÍ"]
[]
[null,null,"Stavba:"]
[null,null,null,null,{"$f":"E7","v":"Chrást - Bezděčín, vodovodní přivaděč"}]
[]
[null,null,"Místo:",null,null,{"$f":"F10","v":" "},null,null,"Datum:",{"$f":"IF(J10=\"\",\"\",J10)","v":"26. 1. 2022"}]
[]
[null,null,"Zadavatel:",null,null,{"$f":"E13","v":"Vodovody a kanalizace Mladá Boleslav a.s."},null,null,"Projektant:",{"$f":"E19","v":"VEDU VODU s.r.o."}]
[null,null,"Uchazeč:",null,null,{"$f":"IF(E16=\"\",\"\",E16)","v":"Vyplň údaj"},null,null,"Zpracovatel:",{"$f":"E22","v":"ing.Evžen Kozák"}]
[]
[null,null,"PČ","Typ","Kód","Popis","MJ","Množství","J.cena [CZK]","Cena celkem [CZK]","Cenová soustava",null,"","DPH","J. Nh [h]","Nh celkem [h]","J. hmotnost [t]","Hmotnost celkem [t]","J. suť [t]","Suť Celkem [t]"]
[null,null,"Náklady soupisu celkem",null,null,null,null,null,null,{"$f":"BK86","v":0},null,null,null,null,null,{"$f":"P87+P261","v":0},null,{"$f":"R87+R261","v":1497.4097833000001},null,{"$f":"T87+T261","v":156.91461000000001},null,null,null,null,null,null,null,null,null,null,null,null,null,null,null,null,null,null,null,null,null,null,null,null,null,"D","-1",null,null,null,null,null,null,null,null,null,null,null,null,null,null,null,{"$f":"BK87+BK261","v":0}]
[null,null,null,"D","HSV","Práce a dodávky HSV",null,null,null,{"$f":"BK87","v":0},null,null,null,null,null,{"$f":"P88+P157+P160+P163+P196+P237+P249","v":0},null,{"$f":"R88+R157+R160+R163+R196+R237+R249","v":1497.4097833000001},null,{"$f":"T88+T157+T160+T163+T196+T237+T249","v":156.91461000000001},null,null,null,null,null,null,null,null,null,null,null,null,null,null,null,null,null,null,null,null,null,null,null,"1",null,"D","0",null,null,null,"ROZPOCET",null,null,null,null,null,null,null,null,null,null,null,{"$f":"BK88+BK157+BK160+BK163+BK196+BK237+BK249","v":0}]
[null,null,null,"D","1","Zemní práce",null,null,null,{"$f":"BK88","v":0},null,null,null,null,null,{"$f":"SUM(P89:P156)","v":0},null,{"$f":"SUM(R89:R156)","v":2.5715447},null,{"$f":"SUM(T89:T156)","v":156.52600000000001},null,null,null,null,null,null,null,null,null,null,null,null,null,null,null,null,null,null,null,null,null,null,null,"1",null,"D","1",null,null,null,"ROZPOCET",null,null,null,null,null,null,null,null,null,null,null,{"$f":"SUM(BK89:BK156)","v":0}]
[null,null,"1","K","113106171","Rozebrání dlažeb a dílců vozovek a ploch s přemístěním hmot na skládku na vzdálenost do 3 m nebo s naložením na dopravní prostředek, s jakoukoliv výplní spár ručně ze zámkové dlažby s ložem z kameniva","m2",99,null,{"$f":"ROUND(I89*H89,2)","v":0},"CS ÚRS 2022 01",null,"","základní",null,{"$f":"O89*H89","v":0},0,{"$f":"Q89*H89","v":0},0.29499999999999998,{"$f":"S89*H89","v":29.204999999999998},null,null,null,null,null,null,null,null,null,null,null,null,null,null,null,null,null,null,null,null,null,null,null,"4",null,"K","2",null,null,null,"ROZPOCET",null,null,null,null,null,{"$f":"IF(N89=\"základní\",J89,0)","v":0},{"$f":"IF(N89=\"snížená\",J89,0)","v":0},{"$f":"IF(N89=\"zákl. přenesená\",J89,0)","v":0},{"$f":"IF(N89=\"sníž. přenesená\",J89,0)","v":0},{"$f":"IF(N89=\"nulová\",J89,0)","v":0},"1",{"$f":"ROUND(I89*H89,2)","v":0},"4","711825139"]
[null,null,null,"Online PSC",null,"https://podminky.urs.cz/item/CS_URS_2022_01/113106171",null,null,null,null,null,null,null,null,null,null,null,null,null,null,null,null,null,null,null,null,null,null,null,null,null,null,null,null,null,null,null,null,null,null,null,null,null,null,null,"Online PSC","2"]
[null,null,null,"VV","","7,0+92,0 \"- provizorní zadláždění překopů\"",null,99,null,null,null,null,null,null,null,null,null,null,null,null,null,null,null,null,null,null,null,null,null,null,null,null,null,null,null,null,null,null,null,null,null,null,null,null,null,"VV","2","2","True","1","ROZPOCET"]
[null,null,"2","K","113107111","Odstranění podkladů nebo krytů ručně s přemístěním hmot na skládku na vzdálenost do 3 m nebo s naložením na dopravní prostředek z kameniva těženého, o tl. vrstvy do 100 mm","m2",99,null,{"$f":"ROUND(I92*H92,2)","v":0},"CS ÚRS 2022 01",null,"","základní",null,{"$f":"O92*H92","v":0},0,{"$f":"Q92*H92","v":0},0.18,{"$f":"S92*H92","v":17.82},null,null,null,null,null,null,null,null,null,null,null,null,null,null,null,null,null,null,null,null,null,null,null,"4",null,"K","2",null,null,null,"ROZPOCET",null,null,null,null,null,{"$f":"IF(N92=\"základní\",J92,0)","v":0},{"$f":"IF(N92=\"snížená\",J92,0)","v":0},{"$f":"IF(N92=\"zákl. přenesená\",J92,0)","v":0},{"$f":"IF(N92=\"sníž. přenesená\",J92,0)","v":0},{"$f":"IF(N92=\"nulová\",J92,0)","v":0},"1",{"$f":"ROUND(I92*H92,2)","v":0},"4","-1933070957"]
[null,null,null,"Online PSC",null,"https://podminky.urs.cz/item/CS_URS_2022_01/113107111",null,null,null,null,null,null,null,null,null,null,null,null,null,null,null,null,null,null,null,null,null,null,null,null,null,null,null,null,null,null,null,null,null,null,null,null,null,null,null,"Online PSC","2"]
[null,null,null,"VV","","7,0+92,0 \"- provizorní zadláždění překopů\"",null,99,null,null,null,null,null,null,null,null,null,null,null,null,null,null,null,null,null,null,null,null,null,null,null,null,null,null,null,null,null,null,null,null,null,null,null,null,null,"VV","2","2","True","1","ROZPOCET"]
[null,null,"3","K","113107163","Odstranění podkladů nebo krytů strojně plochy jednotlivě přes 50 m2 do 200 m2 s přemístěním hmot na skládku na vzdálenost do 20 m nebo s naložením na dopravní prostředek z kameniva hrubého drceného, o tl. vrstvy přes 200 do 300 mm","m2",99,null,{"$f":"ROUND(I95*H95,2)","v":0},"CS ÚRS 2022 01",null,"","základní",null,{"$f":"O95*H95","v":0},0,{"$f":"Q95*H95","v":0},0.44,{"$f":"S95*H95","v":43.56},null,null,null,null,null,null,null,null,null,null,null,null,null,null,null,null,null,null,null,null,null,null,null,"4",null,"K","2",null,null,null,"ROZPOCET",null,null,null,null,null,{"$f":"IF(N95=\"základní\",J95,0)","v":0},{"$f":"IF(N95=\"snížená\",J95,0)","v":0},{"$f":"IF(N95=\"zákl. přenesená\",J95,0)","v":0},{"$f":"IF(N95=\"sníž. přenesená\",J95,0)","v":0},{"$f":"IF(N95=\"nulová\",J95,0)","v":0},"1",{"$f":"ROUND(I95*H95,2)","v":0},"4","540616914"]
[null,null,null,"Online PSC",null,"https://podminky.urs.cz/item/CS_URS_2022_01/113107163",null,null,null,null,null,null,null,null,null,null,null,null,null,null,null,null,null,null,null,null,null,null,null,null,null,null,null,null,null,null,null,null,null,null,null,null,null,null,null,"Online PSC","2"]
[null,null,null,"VV","","7,0+92,0",null,99,null,null,null,null,null,null,null,null,null,null,null,null,null,null,null,null,null,null,null,null,null,null,null,null,null,null,null,null,null,null,null,null,null,null,null,null,null,"VV","2","2","True","1","ROZPOCET"]
[null,null,"4","K","113154122","Frézování živičného podkladu nebo krytu s naložením na dopravní prostředek plochy do 500 m2 bez překážek v trase pruhu šířky přes 0,5 m do 1 m, tloušťky vrstvy 40 mm","m2",345.5,null,{"$f":"ROUND(I98*H98,2)","v":0},"CS ÚRS 2022 01",null,"","základní",null,{"$f":"O98*H98","v":0},4.0000000000000003E-5,{"$f":"Q98*H98","v":1.3820000000000001E-2},9.1999999999999998E-2,{"$f":"S98*H98","v":31.785999999999998},null,null,null,null,null,null,null,null,null,null,null,null,null,null,null,null,null,null,null,null,null,null,null,"4",null,"K","2",null,null,null,"ROZPOCET",null,null,null,null,null,{"$f":"IF(N98=\"základní\",J98,0)","v":0},{"$f":"IF(N98=\"snížená\",J98,0)","v":0},{"$f":"IF(N98=\"zákl. přenesená\",J98,0)","v":0},{"$f":"IF(N98=\"sníž. přenesená\",J98,0)","v":0},{"$f":"IF(N98=\"nulová\",J98,0)","v":0},"1",{"$f":"ROUND(I98*H98,2)","v":0},"4","1184622148"]
[null,null,null,"Online PSC",null,"https://podminky.urs.cz/item/CS_URS_2022_01/113154122",null,null,null,null,null,null,null,null,null,null,null,null,null,null,null,null,null,null,null,null,null,null,null,null,null,null,null,null,null,null,null,null,null,null,null,null,null,null,null,"Online PSC","2"]
[null,null,null,"VV","","47,0+298,50",null,345.5,null,null,null,null,null,null,null,null,null,null,null,null,null,null,null,null,null,null,null,null,null,null,null,null,null,null,null,null,null,null,null,null,null,null,null,null,null,"VV","2","2","True","1","ROZPOCET"]
[null,null,"5","K","113154123","Frézování živičného podkladu nebo krytu s naložením na dopravní prostředek plochy do 500 m2 bez překážek v trase pruhu šířky přes 0,5 m do 1 m, tloušťky vrstvy 50 mm","m2",99,null,{"$f":"ROUND(I101*H101,2)","v":0},"CS ÚRS 2022 01",null,"","základní",null,{"$f":"O101*H101","v":0},5.0000000000000002E-5,{"$f":"Q101*H101","v":4.9500000000000004E-3},0.115,{"$f":"S101*H101","v":11.385},null,null,null,null,null,null,null,null,null,null,null,null,null,null,null,null,null,null,null,null,null,null,null,"4",null,"K","2",null,null,null,"ROZPOCET",null,null,null,null,null,{"$f":"IF(N101=\"základní\",J101,0)","v":0},{"$f":"IF(N101=\"snížená\",J101,0)","v":0},{"$f":"IF(N101=\"zákl. přenesená\",J101,0)","v":0},{"$f":"IF(N101=\"sníž. přenesená\",J101,0)","v":0},{"$f":"IF(N101=\"nulová\",J101,0)","v":0},"1",{"$f":"ROUND(I101*H101,2)","v":0},"4","-1707085131"]
[null,null,null,"Online PSC",null,"https://podminky.urs.cz/item/CS_URS_2022_01/113154123",null,null,null,null,null,null,null,null,null,null,null,null,null,null,null,null,null,null,null,null,null,null,null,null,null,null,null,null,null,null,null,null,null,null,null,null,null,null,null,"Online PSC","2"]
[null,null,null,"VV","","7,0+92,0",null,99,null,null,null,null,null,null,null,null,null,null,null,null,null,null,null,null,null,null,null,null,null,null,null,null,null,null,null,null,null,null,null,null,null,null,null,null,null,"VV","2","2","True","1","ROZPOCET"]
[null,null,"6","K","113154124","Frézování živičného podkladu nebo krytu s naložením na dopravní prostředek plochy do 500 m2 bez překážek v trase pruhu šířky přes 0,5 m do 1 m, tloušťky vrstvy 100 mm","m2",99,null,{"$f":"ROUND(I104*H104,2)","v":0},"CS ÚRS 2022 01",null,"","základní",null,{"$f":"O104*H104","v":0},9.0000000000000006E-5,{"$f":"Q104*H104","v":8.9100000000000013E-3},0.23,{"$f":"S104*H104","v":22.77},null,null,null,null,null,null,null,null,null,null,null,null,null,null,null,null,null,null,null,null,null,null,null,"4",null,"K","2",null,null,null,"ROZPOCET",null,null,null,null,null,{"$f":"IF(N104=\"základní\",J104,0)","v":0},{"$f":"IF(N104=\"snížená\",J104,0)","v":0},{"$f":"IF(N104=\"zákl. přenesená\",J104,0)","v":0},{"$f":"IF(N104=\"sníž. přenesená\",J104,0)","v":0},{"$f":"IF(N104=\"nulová\",J104,0)","v":0},"1",{"$f":"ROUND(I104*H104,2)","v":0},"4","-1634111098"]
[null,null,null,"Online PSC",null,"https://podminky.urs.cz/item/CS_URS_2022_01/113154124",null,null,null,null,null,null,null,null,null,null,null,null,null,null,null,null,null,null,null,null,null,null,null,null,null,null,null,null,null,null,null,null,null,null,null,null,null,null,null,"Online PSC","2"]
[null,null,null,"VV","","7,0+92,0",null,99,null,null,null,null,null,null,null,null,null,null,null,null,null,null,null,null,null,null,null,null,null,null,null,null,null,null,null,null,null,null,null,null,null,null,null,null,null,"VV","2","2","True","1","ROZPOCET"]
[null,null,"7","K","115101201","Čerpání vody na dopravní výšku do 10 m průměrný přítok do 500 l/min","hod",102,null,{"$f":"ROUND(I107*H107,2)","v":0},"",null,"","základní",null,{"$f":"O107*H107","v":0},0,{"$f":"Q107*H107","v":0},0,{"$f":"S107*H107","v":0},null,null,null,null,null,null,null,null,null,null,null,null,null,null,null,null,null,null,null,null,null,null,null,"4",null,"K","2",null,null,null,"ROZPOCET",null,null,null,null,null,{"$f":"IF(N107=\"základní\",J107,0)","v":0},{"$f":"IF(N107=\"snížená\",J107,0)","v":0},{"$f":"IF(N107=\"zákl. přenesená\",J107,0)","v":0},{"$f":"IF(N107=\"sníž. přenesená\",J107,0)","v":0},{"$f":"IF(N107=\"nulová\",J107,0)","v":0},"1",{"$f":"ROUND(I107*H107,2)","v":0},"4","544953034"]
[null,null,null,"VV","","4,25*24",null,102,null,null,null,null,null,null,null,null,null,null,null,null,null,null,null,null,null,null,null,null,null,null,null,null,null,null,null,null,null,null,null,null,null,null,null,null,null,"VV","2","2","True","1","ROZPOCET"]
[null,null,"8","K","115101301","Pohotovost čerpací soupravy pro dopravní výšku do 10 m přítok do 500 l/min","den",4.25,null,{"$f":"ROUND(I109*H109,2)","v":0},"",null,"","základní",null,{"$f":"O109*H109","v":0},0,{"$f":"Q109*H109","v":0},0,{"$f":"S109*H109","v":0},null,null,null,null,null,null,null,null,null,null,null,null,null,null,null,null,null,null,null,null,null,null,null,"4",null,"K","2",null,null,null,"ROZPOCET",null,null,null,null,null,{"$f":"IF(N109=\"základní\",J109,0)","v":0},{"$f":"IF(N109=\"snížená\",J109,0)","v":0},{"$f":"IF(N109=\"zákl. přenesená\",J109,0)","v":0},{"$f":"IF(N109=\"sníž. přenesená\",J109,0)","v":0},{"$f":"IF(N109=\"nulová\",J109,0)","v":0},"1",{"$f":"ROUND(I109*H109,2)","v":0},"4","-2135159125"]
[null,null,"9","K","119001405","Dočasné zajištění podzemního potrubí nebo vedení ve výkopišti ve stavu i poloze, ve kterých byla na začátku zemních prací a to s podepřením, vzepřením nebo vyvěšením, případně s ochranným bedněním, se zřízením a odstraněním zajišťovací konstrukce, s opotřebením hmot potrubí plastového, jmenovité světlosti DN do 200 mm","m",1,null,{"$f":"ROUND(I110*H110,2)","v":0},"CS ÚRS 2022 01",null,"","základní",null,{"$f":"O110*H110","v":0},3.6900000000000002E-2,{"$f":"Q110*H110","v":3.6900000000000002E-2},0,{"$f":"S110*H110","v":0},null,null,null,null,null,null,null,null,null,null,null,null,null,null,null,null,null,null,null,null,null,null,null,"4",null,"K","2",null,null,null,"ROZPOCET",null,null,null,null,null,{"$f":"IF(N110=\"základní\",J110,0)","v":0},{"$f":"IF(N110=\"snížená\",J110,0)","v":0},{"$f":"IF(N110=\"zákl. přenesená\",J110,0)","v":0},{"$f":"IF(N110=\"sníž. přenesená\",J110,0)","v":0},{"$f":"IF(N110=\"nulová\",J110,0)","v":0},"1",{"$f":"ROUND(I110*H110,2)","v":0},"4","-123960617"]
[null,null,null,"Online PSC",null,"https://podminky.urs.cz/item/CS_URS_2022_01/119001405",null,null,null,null,null,null,null,null,null,null,null,null,null,null,null,null,null,null,null,null,null,null,null,null,null,null,null,null,null,null,null,null,null,null,null,null,null,null,null,"Online PSC","2"]
[null,null,"10","K","119001421","Dočasné zajištění kabelů - 3 kabely","m",9,null,{"$f":"ROUND(I112*H112,2)","v":0},"",null,"","základní",null,{"$f":"O112*H112","v":0},3.6904300000000001E-2,{"$f":"Q112*H112","v":0.33213870000000001},0,{"$f":"S112*H112","v":0},null,null,null,null,null,null,null,null,null,null,null,null,null,null,null,null,null,null,null,null,null,null,null,"4",null,"K","2",null,null,null,"ROZPOCET",null,null,null,null,null,{"$f":"IF(N112=\"základní\",J112,0)","v":0},{"$f":"IF(N112=\"snížená\",J112,0)","v":0},{"$f":"IF(N112=\"zákl. přenesená\",J112,0)","v":0},{"$f":"IF(N112=\"sníž. přenesená\",J112,0)","v":0},{"$f":"IF(N112=\"nulová\",J112,0)","v":0},"1",{"$f":"ROUND(I112*H112,2)","v":0},"4","1298247395"]
[null,null,"11","K","120001101","Příplatek za ztížení vykopávky v blízkosti podzemního vedení","m3",54,null,{"$f":"ROUND(I113*H113,2)","v":0},"",null,"","základní",null,{"$f":"O113*H113","v":0},0,{"$f":"Q113*H113","v":0},0,{"$f":"S113*H113","v":0},null,null,null,null,null,null,null,null,null,null,null,null,null,null,null,null,null,null,null,null,null,null,null,"4",null,"K","2",null,null,null,"ROZPOCET",null,null,null,null,null,{"$f":"IF(N113=\"základní\",J113,0)","v":0},{"$f":"IF(N113=\"snížená\",J113,0)","v":0},{"$f":"IF(N113=\"zákl. přenesená\",J113,0)","v":0},{"$f":"IF(N113=\"sníž. přenesená\",J113,0)","v":0},{"$f":"IF(N113=\"nulová\",J113,0)","v":0},"1",{"$f":"ROUND(I113*H113,2)","v":0},"4","1689378954"]
[null,null,null,"VV","","1,2*1,5*3,0*10",null,54,null,null,null,null,null,null,null,null,null,null,null,null,null,null,null,null,null,null,null,null,null,null,null,null,null,null,null,null,null,null,null,null,null,null,null,null,null,"VV","2","2","True","1","ROZPOCET"]
[null,null,"12","K","132254206","Hloubení zapažených rýh šířky přes 800 do 2 000 mm strojně s urovnáním dna do předepsaného profilu a spádu v hornině třídy těžitelnosti I skupiny 3 přes 1 000 do 5 000 m3","m3",1961.444,null,{"$f":"ROUND(I115*H115,2)","v":0},"CS ÚRS 2020 01",null,"","základní",null,{"$f":"O115*H115","v":0},0,{"$f":"Q115*H115","v":0},0,{"$f":"S115*H115","v":0},null,null,null,null,null,null,null,null,null,null,null,null,null,null,null,null,null,null,null,null,null,null,null,"4",null,"K","2",null,null,null,"ROZPOCET",null,null,null,null,null,{"$f":"IF(N115=\"základní\",J115,0)","v":0},{"$f":"IF(N115=\"snížená\",J115,0)","v":0},{"$f":"IF(N115=\"zákl. přenesená\",J115,0)","v":0},{"$f":"IF(N115=\"sníž. přenesená\",J115,0)","v":0},{"$f":"IF(N115=\"nulová\",J115,0)","v":0},"1",{"$f":"ROUND(I115*H115,2)","v":0},"4","-165169254"]
[null,null,null,"VV","","2249,8 \"celková kubatura získána SW z podélného profilu\"",null,2249.8000000000002,null,null,null,null,null,null,null,null,null,null,null,null,null,null,null,null,null,null,null,null,null,null,null,null,null,null,null,null,null,null,null,null,null,null,null,null,null,"VV","2","2","True","0","ROZPOCET"]
[null,null,null,"VV","","-(0,5*15,1+0,37*10,4+0,44*11,9+0,36*7,0+0,78*64,6+0,25*16,5+0,45*63,3+0,61*128,2+0,87*68,9)*1,2 \"odpočet tř těž.II skup.5-odměřeno z PP geologie\"",null,-288.35599999999999,null,null,null,null,null,null,null,null,null,null,null,null,null,null,null,null,null,null,null,null,null,null,null,null,null,null,null,null,null,null,null,null,null,null,null,null,null,"VV","2","2","True","0","ROZPOCET"]
[null,null,null,"VV","","Součet",null,1961.444,null,null,null,null,null,null,null,null,null,null,null,null,null,null,null,null,null,null,null,null,null,null,null,null,null,null,null,null,null,null,null,null,null,null,null,null,null,"VV","2","4","True","1","ROZPOCET"]
[null,null,"13","K","132454206","Hloubení zapažených rýh šířky přes 800 do 2 000 mm strojně s urovnáním dna do předepsaného profilu a spádu v hornině třídy těžitelnosti II skupiny 5 přes 1 000 do 5 000 m3","m3",288.35599999999999,null,{"$f":"ROUND(I119*H119,2)","v":0},"CS ÚRS 2020 02",null,"","základní",null,{"$f":"O119*H119","v":0},0,{"$f":"Q119*H119","v":0},0,{"$f":"S119*H119","v":0},null,null,null,null,null,null,null,null,null,null,null,null,null,null,null,null,null,null,null,null,null,null,null,"4",null,"K","2",null,null,null,"ROZPOCET",null,null,null,null,null,{"$f":"IF(N119=\"základní\",J119,0)","v":0},{"$f":"IF(N119=\"snížená\",J119,0)","v":0},{"$f":"IF(N119=\"zákl. přenesená\",J119,0)","v":0},{"$f":"IF(N119=\"sníž. přenesená\",J119,0)","v":0},{"$f":"IF(N119=\"nulová\",J119,0)","v":0},"1",{"$f":"ROUND(I119*H119,2)","v":0},"4","1166555515"]
[null,null,null,"VV","","(0,5*15,1+0,37*10,4+0,44*11,9+0,36*7,0+0,78*64,6+0,25*16,5+0,45*63,3+0,61*128,2+0,87*68,9)*1,2 \"odměřeno z PP geologie\"",null,288.35599999999999,null,null,null,null,null,null,null,null,null,null,null,null,null,null,null,null,null,null,null,null,null,null,null,null,null,null,null,null,null,null,null,null,null,null,null,null,null,"VV","2","2","True","1","ROZPOCET"]
[null,null,"14","K","151811131","Zřízení pažicích boxů pro pažení a rozepření stěn rýh podzemního vedení hloubka výkopu do 4 m, šířka do 1,2 m","m2",3749.7,null,{"$f":"ROUND(I121*H121,2)","v":0},"CS ÚRS 2019 01",null,"","základní",null,{"$f":"O121*H121","v":0},5.8E-4,{"$f":"Q121*H121","v":2.1748259999999999},0,{"$f":"S121*H121","v":0},null,null,null,null,null,null,null,null,null,null,null,null,null,null,null,null,null,null,null,null,null,null,null,"4",null,"K","2",null,null,null,"ROZPOCET",null,null,null,null,null,{"$f":"IF(N121=\"základní\",J121,0)","v":0},{"$f":"IF(N121=\"snížená\",J121,0)","v":0},{"$f":"IF(N121=\"zákl. přenesená\",J121,0)","v":0},{"$f":"IF(N121=\"sníž. přenesená\",J121,0)","v":0},{"$f":"IF(N121=\"nulová\",J121,0)","v":0},"1",{"$f":"ROUND(I121*H121,2)","v":0},"4","-1539578164"]
[null,null,null,"VV","","3700,8+48,9 \"množství získáno SW z podélného profilu\"",null,3749.7,null,null,null,null,null,null,null,null,null,null,null,null,null,null,null,null,null,null,null,null,null,null,null,null,null,null,null,null,null,null,null,null,null,null,null,null,null,"VV","2","2","True","1","ROZPOCET"]
[null,null,"15","K","151811231","Odstranění pažicích boxů pro pažení a rozepření stěn rýh podzemního vedení hloubka výkopu do 4 m, šířka do 1,2 m","m2",3749.7,null,{"$f":"ROUND(I123*H123,2)","v":0},"CS ÚRS 2019 01",null,"","základní",null,{"$f":"O123*H123","v":0},0,{"$f":"Q123*H123","v":0},0,{"$f":"S123*H123","v":0},null,null,null,null,null,null,null,null,null,null,null,null,null,null,null,null,null,null,null,null,null,null,null,"4",null,"K","2",null,null,null,"ROZPOCET",null,null,null,null,null,{"$f":"IF(N123=\"základní\",J123,0)","v":0},{"$f":"IF(N123=\"snížená\",J123,0)","v":0},{"$f":"IF(N123=\"zákl. přenesená\",J123,0)","v":0},{"$f":"IF(N123=\"sníž. přenesená\",J123,0)","v":0},{"$f":"IF(N123=\"nulová\",J123,0)","v":0},"1",{"$f":"ROUND(I123*H123,2)","v":0},"4","-1207668874"]
[null,null,null,"VV","","3700,8+48,9 \"množství získáno SW z podélného profilu\"",null,3749.7,null,null,null,null,null,null,null,null,null,null,null,null,null,null,null,null,null,null,null,null,null,null,null,null,null,null,null,null,null,null,null,null,null,null,null,null,null,"VV","2","2","True","1","ROZPOCET"]
[null,null,"16","K","162351104","Vodorovné přemístění výkopku nebo sypaniny po suchu na obvyklém dopravním prostředku, bez naložení výkopku, avšak se složením bez rozhrnutí z horniny třídy těžitelnosti I skupiny 1 až 3 na vzdálenost přes 500 do 1 000 m","m3",3922.8879999999999,null,{"$f":"ROUND(I125*H125,2)","v":0},"CS ÚRS 2020 01",null,"","základní",null,{"$f":"O125*H125","v":0},0,{"$f":"Q125*H125","v":0},0,{"$f":"S125*H125","v":0},null,null,null,null,null,null,null,null,null,null,null,null,null,null,null,null,null,null,null,null,null,null,null,"4",null,"K","2",null,null,null,"ROZPOCET",null,null,null,null,null,{"$f":"IF(N125=\"základní\",J125,0)","v":0},{"$f":"IF(N125=\"snížená\",J125,0)","v":0},{"$f":"IF(N125=\"zákl. přenesená\",J125,0)","v":0},{"$f":"IF(N125=\"sníž. přenesená\",J125,0)","v":0},{"$f":"IF(N125=\"nulová\",J125,0)","v":0},"1",{"$f":"ROUND(I125*H125,2)","v":0},"4","1385306639"]
[null,null,null,"VV","","2249,8 \"celková kubatura získána SW z podélného profilu\"",null,2249.8000000000002,null,null,null,null,null,null,null,null,null,null,null,null,null,null,null,null,null,null,null,null,null,null,null,null,null,null,null,null,null,null,null,null,null,null,null,null,null,"VV","2","2","True","0","ROZPOCET"]
[null,null,null,"VV","","-(0,5*15,1+0,37*10,4+0,44*11,9+0,36*7,0+0,78*64,6+0,25*16,5+0,45*63,3+0,61*128,2+0,87*68,9)*1,2 \"odpočet tř těž.II skup.5-odměřeno z PP geologie\"",null,-288.35599999999999,null,null,null,null,null,null,null,null,null,null,null,null,null,null,null,null,null,null,null,null,null,null,null,null,null,null,null,null,null,null,null,null,null,null,null,null,null,"VV","2","2","True","0","ROZPOCET"]
[null,null,null,"VV","","1961,444 \"dovoz z mezideponie na zásyp rýhy\"",null,1961.444,null,null,null,null,null,null,null,null,null,null,null,null,null,null,null,null,null,null,null,null,null,null,null,null,null,null,null,null,null,null,null,null,null,null,null,null,null,"VV","2","2","True","0","ROZPOCET"]
[null,null,null,"VV","","Součet",null,3922.8879999999999,null,null,null,null,null,null,null,null,null,null,null,null,null,null,null,null,null,null,null,null,null,null,null,null,null,null,null,null,null,null,null,null,null,null,null,null,null,"VV","2","4","True","1","ROZPOCET"]
[null,null,"17","K","162351124","Vodorovné přemístění výkopku nebo sypaniny po suchu na obvyklém dopravním prostředku, bez naložení výkopku, avšak se složením bez rozhrnutí z horniny třídy těžitelnosti II na vzdálenost skupiny 4 a 5 na vzdálenost přes 500 do 1 000 m","m3",576.71199999999999,null,{"$f":"ROUND(I130*H130,2)","v":0},"CS ÚRS 2020 01",null,"","základní",null,{"$f":"O130*H130","v":0},0,{"$f":"Q130*H130","v":0},0,{"$f":"S130*H130","v":0},null,null,null,null,null,null,null,null,null,null,null,null,null,null,null,null,null,null,null,null,null,null,null,"4",null,"K","2",null,null,null,"ROZPOCET",null,null,null,null,null,{"$f":"IF(N130=\"základní\",J130,0)","v":0},{"$f":"IF(N130=\"snížená\",J130,0)","v":0},{"$f":"IF(N130=\"zákl. přenesená\",J130,0)","v":0},{"$f":"IF(N130=\"sníž. přenesená\",J130,0)","v":0},{"$f":"IF(N130=\"nulová\",J130,0)","v":0},"1",{"$f":"ROUND(I130*H130,2)","v":0},"4","1211025635"]
[null,null,null,"VV","","(0,5*15,1+0,37*10,4+0,44*11,9+0,36*7,0+0,78*64,6+0,25*16,5+0,45*63,3+0,61*128,2+0,87*68,9)*1,2 \"odměřeno z PP geologie\"",null,288.35599999999999,null,null,null,null,null,null,null,null,null,null,null,null,null,null,null,null,null,null,null,null,null,null,null,null,null,null,null,null,null,null,null,null,null,null,null,null,null,"VV","2","2","True","0","ROZPOCET"]
[null,null,null,"VV","","288,356 \"dovoz z mezideponie na zásyp rýhy\"",null,288.35599999999999,null,null,null,null,null,null,null,null,null,null,null,null,null,null,null,null,null,null,null,null,null,null,null,null,null,null,null,null,null,null,null,null,null,null,null,null,null,"VV","2","2","True","0","ROZPOCET"]
[null,null,null,"VV","","Součet",null,576.71199999999999,null,null,null,null,null,null,null,null,null,null,null,null,null,null,null,null,null,null,null,null,null,null,null,null,null,null,null,null,null,null,null,null,null,null,null,null,null,"VV","2","4","True","0","ROZPOCET"]
[null,null,null,"VV","","576,712",null,576.71199999999999,null,null,null,null,null,null,null,null,null,null,null,null,null,null,null,null,null,null,null,null,null,null,null,null,null,null,null,null,null,null,null,null,null,null,null,null,null,"VV","2","2","True","1","ROZPOCET"]
[null,null,"18","K","167151111","Nakládání, skládání a překládání neulehlého výkopku nebo sypaniny strojně nakládání, množství přes 100 m3, z hornin třídy těžitelnosti I, skupiny 1 až 3","m3",4499.6000000000004,null,{"$f":"ROUND(I135*H135,2)","v":0},"CS ÚRS 2020 01",null,"","základní",null,{"$f":"O135*H135","v":0},0,{"$f":"Q135*H135","v":0},0,{"$f":"S135*H135","v":0},null,null,null,null,null,null,null,null,null,null,null,null,null,null,null,null,null,null,null,null,null,null,null,"4",null,"K","2",null,null,null,"ROZPOCET",null,null,null,null,null,{"$f":"IF(N135=\"základní\",J135,0)","v":0},{"$f":"IF(N135=\"snížená\",J135,0)","v":0},{"$f":"IF(N135=\"zákl. přenesená\",J135,0)","v":0},{"$f":"IF(N135=\"sníž. přenesená\",J135,0)","v":0},{"$f":"IF(N135=\"nulová\",J135,0)","v":0},"1",{"$f":"ROUND(I135*H135,2)","v":0},"4","1972149378"]
[null,null,null,"VV","","2249,8 \"celková kubatura získána SW z podélného profilu\"",null,2249.8000000000002,null,null,null,null,null,null,null,null,null,null,null,null,null,null,null,null,null,null,null,null,null,null,null,null,null,null,null,null,null,null,null,null,null,null,null,null,null,"VV","2","2","True","0","ROZPOCET"]
[null,null,null,"VV","","-(0,5*15,1+0,37*10,4+0,44*11,9+0,36*7,0+0,78*64,6+0,25*16,5+0,45*63,3+0,61*128,2+0,87*68,9)*1,2 \"odpočet tř těž.II skup.5-odměřeno z PP geologie\"",null,-288.35599999999999,null,null,null,null,null,null,null,null,null,null,null,null,null,null,null,null,null,null,null,null,null,null,null,null,null,null,null,null,null,null,null,null,null,null,null,null,null,"VV","2","2","True","0","ROZPOCET"]
[null,null,null,"VV","","1961,444 \"dovoz z mezideponie na zásyp rýhy\"",null,1961.444,null,null,null,null,null,null,null,null,null,null,null,null,null,null,null,null,null,null,null,null,null,null,null,null,null,null,null,null,null,null,null,null,null,null,null,null,null,"VV","2","2","True","0","ROZPOCET"]
[null,null,null,"VV","","(0,5*15,1+0,37*10,4+0,44*11,9+0,36*7,0+0,78*64,6+0,25*16,5+0,45*63,3+0,61*128,2+0,87*68,9)*1,2 \"odměřeno z PP geologie\"",null,288.35599999999999,null,null,null,null,null,null,null,null,null,null,null,null,null,null,null,null,null,null,null,null,null,null,null,null,null,null,null,null,null,null,null,null,null,null,null,null,null,"VV","2","2","True","0","ROZPOCET"]
[null,null,null,"VV","","288,356 \"dovoz z mezideponie na zásyp rýhy\"",null,288.35599999999999,null,null,null,null,null,null,null,null,null,null,null,null,null,null,null,null,null,null,null,null,null,null,null,null,null,null,null,null,null,null,null,null,null,null,null,null,null,"VV","2","2","True","0","ROZPOCET"]
[null,null,null,"VV","","Součet",null,4499.6000000000004,null,null,null,null,null,null,null,null,null,null,null,null,null,null,null,null,null,null,null,null,null,null,null,null,null,null,null,null,null,null,null,null,null,null,null,null,null,"VV","2","4","True","1","ROZPOCET"]
[null,null,"19","K","174101101","Zásyp zhutněný jam šachet rýh nebo kolem objektů+nákup vhodného zásypového materiálu","m3",2199.4319999999998,null,{"$f":"ROUND(I142*H142,2)","v":0},"",null,"","základní",null,{"$f":"O142*H142","v":0},0,{"$f":"Q142*H142","v":0},0,{"$f":"S142*H142","v":0},null,null,null,null,null,null,null,null,null,null,null,null,null,null,null,null,null,null,null,null,null,null,null,"4",null,"K","2",null,null,null,"ROZPOCET",null,null,null,null,null,{"$f":"IF(N142=\"základní\",J142,0)","v":0},{"$f":"IF(N142=\"snížená\",J142,0)","v":0},{"$f":"IF(N142=\"zákl. přenesená\",J142,0)","v":0},{"$f":"IF(N142=\"sníž. přenesená\",J142,0)","v":0},{"$f":"IF(N142=\"nulová\",J142,0)","v":0},"1",{"$f":"ROUND(I142*H142,2)","v":0},"4","1682663434"]
[null,null,null,"VV","","2249,8 \"celková kubatura získána SW z podélného profilu\"",null,2249.8000000000002,null,null,null,null,null,null,null,null,null,null,null,null,null,null,null,null,null,null,null,null,null,null,null,null,null,null,null,null,null,null,null,null,null,null,null,null,null,"VV","2","2","True","0","ROZPOCET"]
[null,null,null,"VV","","-3,14*0,125*0,125*1026,6 \"objem potrubí\"",null,-50.368000000000002,null,null,null,null,null,null,null,null,null,null,null,null,null,null,null,null,null,null,null,null,null,null,null,null,null,null,null,null,null,null,null,null,null,null,null,null,null,"VV","2","2","True","0","ROZPOCET"]
[null,null,null,"VV","","Součet",null,2199.4319999999998,null,null,null,null,null,null,null,null,null,null,null,null,null,null,null,null,null,null,null,null,null,null,null,null,null,null,null,null,null,null,null,null,null,null,null,null,null,"VV","2","4","True","1","ROZPOCET"]
[null,null,null,"VV","","\"přebytečný výkopek 50,368 m3 ponechán na stavbě pro násyp pod zastávku BUS a cyklostezku\"",null,"",null,null,null,null,null,null,null,null,null,null,null,null,null,null,null,null,null,null,null,null,null,null,null,null,null,null,null,null,null,null,null,null,null,null,null,null,null,"VV","2","1","True","0","ROZPOCET"]
[null,null,"20","K","121151125","Sejmutí ornice strojně při souvislé ploše přes 500 m2, tl. vrstvy přes 250 do 300 mm","m2",10266,null,{"$f":"ROUND(I147*H147,2)","v":0},"CS ÚRS 2022 01",null,"","základní",null,{"$f":"O147*H147","v":0},0,{"$f":"Q147*H147","v":0},0,{"$f":"S147*H147","v":0},null,null,null,null,null,null,null,null,null,null,null,null,null,null,null,null,null,null,null,null,null,null,null,"4",null,"K","2",null,null,null,"ROZPOCET",null,null,null,null,null,{"$f":"IF(N147=\"základní\",J147,0)","v":0},{"$f":"IF(N147=\"snížená\",J147,0)","v":0},{"$f":"IF(N147=\"zákl. přenesená\",J147,0)","v":0},{"$f":"IF(N147=\"sníž. přenesená\",J147,0)","v":0},{"$f":"IF(N147=\"nulová\",J147,0)","v":0},"1",{"$f":"ROUND(I147*H147,2)","v":0},"4","1575958043"]
[null,null,null,"Online PSC",null,"https://podminky.urs.cz/item/CS_URS_2022_01/121151125",null,null,null,null,null,null,null,null,null,null,null,null,null,null,null,null,null,null,null,null,null,null,null,null,null,null,null,null,null,null,null,null,null,null,null,null,null,null,null,"Online PSC","2"]
[null,null,null,"VV","","1026,6*10,0",null,10266,null,null,null,null,null,null,null,null,null,null,null,null,null,null,null,null,null,null,null,null,null,null,null,null,null,null,null,null,null,null,null,null,null,null,null,null,null,"VV","2","2","True","1","ROZPOCET"]
[null,null,"21","K","181351115","Rozprostření a urovnání ornice v rovině nebo ve svahu sklonu do 1:5 strojně při souvislé ploše přes 500 m2, tl. vrstvy přes 250 do 300 mm","m2",5133,null,{"$f":"ROUND(I150*H150,2)","v":0},"CS ÚRS 2022 01",null,"","základní",null,{"$f":"O150*H150","v":0},0,{"$f":"Q150*H150","v":0},0,{"$f":"S150*H150","v":0},null,null,null,null,null,null,null,null,null,null,null,null,null,null,null,null,null,null,null,null,null,null,null,"4",null,"K","2",null,null,null,"ROZPOCET",null,null,null,null,null,{"$f":"IF(N150=\"základní\",J150,0)","v":0},{"$f":"IF(N150=\"snížená\",J150,0)","v":0},{"$f":"IF(N150=\"zákl. přenesená\",J150,0)","v":0},{"$f":"IF(N150=\"sníž. přenesená\",J150,0)","v":0},{"$f":"IF(N150=\"nulová\",J150,0)","v":0},"1",{"$f":"ROUND(I150*H150,2)","v":0},"4","-1635860479"]
[null,null,null,"Online PSC",null,"https://podminky.urs.cz/item/CS_URS_2022_01/181351115",null,null,null,null,null,null,null,null,null,null,null,null,null,null,null,null,null,null,null,null,null,null,null,null,null,null,null,null,null,null,null,null,null,null,null,null,null,null,null,"Online PSC","2"]
[null,null,null,"VV","","1026,6*5,0 \"rozprostření na 1/2 plochy manip.pruhu-zbývající objem použit při výstavbě cyklostezky\"",null,5133,null,null,null,null,null,null,null,null,null,null,null,null,null,null,null,null,null,null,null,null,null,null,null,null,null,null,null,null,null,null,null,null,null,null,null,null,null,"VV","2","2","True","1","ROZPOCET"]
[null,null,"22","K","997006001","Úprava stavebního odpadu třídění na jednotlivé druhy","t",4949.5600000000004,null,{"$f":"ROUND(I153*H153,2)","v":0},"",null,"","základní",null,{"$f":"O153*H153","v":0},0,{"$f":"Q153*H153","v":0},0,{"$f":"S153*H153","v":0},null,null,null,null,null,null,null,null,null,null,null,null,null,null,null,null,null,null,null,null,null,null,null,"4",null,"K","2",null,null,null,"ROZPOCET",null,null,null,null,null,{"$f":"IF(N153=\"základní\",J153,0)","v":0},{"$f":"IF(N153=\"snížená\",J153,0)","v":0},{"$f":"IF(N153=\"zákl. přenesená\",J153,0)","v":0},{"$f":"IF(N153=\"sníž. přenesená\",J153,0)","v":0},{"$f":"IF(N153=\"nulová\",J153,0)","v":0},"1",{"$f":"ROUND(I153*H153,2)","v":0},"4","715321678"]
[null,null,null,"VV","","2249,8 \"celková kubatura získána SW z podélného profilu\"",null,2249.8000000000002,null,null,null,null,null,null,null,null,null,null,null,null,null,null,null,null,null,null,null,null,null,null,null,null,null,null,null,null,null,null,null,null,null,null,null,null,null,"VV","2","2","True","0","ROZPOCET"]
[null,null,null,"VV","","2249,800*2,2 \"přepočet na tuny\"",null,4949.5600000000004,null,null,null,null,null,null,null,null,null,null,null,null,null,null,null,null,null,null,null,null,null,null,null,null,null,null,null,null,null,null,null,null,null,null,null,null,null,"VV","2","2","True","1","ROZPOCET"]
[null,null,null,"VV","","\"lože a obsyp potrubí frakce 0-4 mm, zásyp rýhy frakce 4-125 mm\"",null,"",null,null,null,null,null,null,null,null,null,null,null,null,null,null,null,null,null,null,null,null,null,null,null,null,null,null,null,null,null,null,null,null,null,null,null,null,null,"VV","2","1","True","0","ROZPOCET"]
[null,null,null,"D","2","Zakládání",null,null,null,{"$f":"BK157","v":0},null,null,null,null,null,{"$f":"SUM(P158:P159)","v":0},null,{"$f":"SUM(R158:R159)","v":10.15353},null,{"$f":"SUM(T158:T159)","v":0},null,null,null,null,null,null,null,null,null,null,null,null,null,null,null,null,null,null,null,null,null,null,null,"1",null,"D","1",null,null,null,"ROZPOCET",null,null,null,null,null,null,null,null,null,null,null,{"$f":"SUM(BK158:BK159)","v":0}]
[null,null,"23","K","275313611","Základy z betonu prostého patky a bloky z betonu kamenem neprokládaného tř. C 16/20","m3",4.5,null,{"$f":"ROUND(I158*H158,2)","v":0},"CS ÚRS 2016 01",null,"","základní",null,{"$f":"O158*H158","v":0},2.2563399999999998,{"$f":"Q158*H158","v":10.15353},0,{"$f":"S158*H158","v":0},null,null,null,null,null,null,null,null,null,null,null,null,null,null,null,null,null,null,null,null,null,null,null,"4",null,"K","2",null,null,null,"ROZPOCET",null,null,null,null,null,{"$f":"IF(N158=\"základní\",J158,0)","v":0},{"$f":"IF(N158=\"snížená\",J158,0)","v":0},{"$f":"IF(N158=\"zákl. přenesená\",J158,0)","v":0},{"$f":"IF(N158=\"sníž. přenesená\",J158,0)","v":0},{"$f":"IF(N158=\"nulová\",J158,0)","v":0},"1",{"$f":"ROUND(I158*H158,2)","v":0},"4","-1609639136"]
[null,null,null,"VV","","1,0*0,75*0,75*8 \"opěrné bloky\"",null,4.5,null,null,null,null,null,null,null,null,null,null,null,null,null,null,null,null,null,null,null,null,null,null,null,null,null,null,null,null,null,null,null,null,null,null,null,null,null,"VV","2","2","True","1","ROZPOCET"]
[null,null,null,"D","4","Vodorovné konstrukce",null,null,null,{"$f":"BK160","v":0},null,null,null,null,null,{"$f":"SUM(P161:P162)","v":0},null,{"$f":"SUM(R161:R162)","v":1418.7959926000001},null,{"$f":"SUM(T161:T162)","v":0},null,null,null,null,null,null,null,null,null,null,null,null,null,null,null,null,null,null,null,null,null,null,null,"1",null,"D","1",null,null,null,"ROZPOCET",null,null,null,null,null,null,null,null,null,null,null,{"$f":"SUM(BK161:BK162)","v":0}]
[null,null,"24","K","451572111","Lože pod potrubí otevřený výkop z kameniva drobného těženého","m3",750.38,null,{"$f":"ROUND(I161*H161,2)","v":0},"",null,"","základní",null,{"$f":"O161*H161","v":0},1.8907700000000001,{"$f":"Q161*H161","v":1418.7959926000001},0,{"$f":"S161*H161","v":0},null,null,null,null,null,null,null,null,null,null,null,null,null,null,null,null,null,null,null,null,null,null,null,"4",null,"K","2",null,null,null,"ROZPOCET",null,null,null,null,null,{"$f":"IF(N161=\"základní\",J161,0)","v":0},{"$f":"IF(N161=\"snížená\",J161,0)","v":0},{"$f":"IF(N161=\"zákl. přenesená\",J161,0)","v":0},{"$f":"IF(N161=\"sníž. přenesená\",J161,0)","v":0},{"$f":"IF(N161=\"nulová\",J161,0)","v":0},"1",{"$f":"ROUND(I161*H161,2)","v":0},"4","1792610123"]
[null,null,null,"VV","","1026,6*(1,2*0,65-3,14*0,125*0,125) \"lože a obsyp potrubí DN 200\"",null,750.38,null,null,null,null,null,null,null,null,null,null,null,null,null,null,null,null,null,null,null,null,null,null,null,null,null,null,null,null,null,null,null,null,null,null,null,null,null,"VV","2","2","True","1","ROZPOCET"]
[null,null,null,"D","5","Komunikace pozemní",null,null,null,{"$f":"BK163","v":0},null,null,null,null,null,{"$f":"SUM(P164:P195)","v":0},null,{"$f":"SUM(R164:R195)","v":27.9056},null,{"$f":"SUM(T164:T195)","v":0},null,null,null,null,null,null,null,null,null,null,null,null,null,null,null,null,null,null,null,null,null,null,null,"1",null,"D","1",null,null,null,"ROZPOCET",null,null,null,null,null,null,null,null,null,null,null,{"$f":"SUM(BK164:BK195)","v":0}]
[null,null,"25","K","564801011","Podklad ze štěrkodrti ŠD s rozprostřením a zhutněním plochy jednotlivě do 100 m2, po zhutnění tl. 30 mm","m2",99,null,{"$f":"ROUND(I164*H164,2)","v":0},"CS ÚRS 2022 01",null,"","základní",null,{"$f":"O164*H164","v":0},0,{"$f":"Q164*H164","v":0},0,{"$f":"S164*H164","v":0},null,null,null,null,null,null,null,null,null,null,null,null,null,null,null,null,null,null,null,null,null,null,null,"4",null,"K","2",null,null,null,"ROZPOCET",null,null,null,null,null,{"$f":"IF(N164=\"základní\",J164,0)","v":0},{"$f":"IF(N164=\"snížená\",J164,0)","v":0},{"$f":"IF(N164=\"zákl. přenesená\",J164,0)","v":0},{"$f":"IF(N164=\"sníž. přenesená\",J164,0)","v":0},{"$f":"IF(N164=\"nulová\",J164,0)","v":0},"1",{"$f":"ROUND(I164*H164,2)","v":0},"4","-387138915"]
[null,null,null,"Online PSC",null,"https://podminky.urs.cz/item/CS_URS_2022_01/564801011",null,null,null,null,null,null,null,null,null,null,null,null,null,null,null,null,null,null,null,null,null,null,null,null,null,null,null,null,null,null,null,null,null,null,null,null,null,null,null,"Online PSC","2"]
[null,null,null,"VV","","7,0+92,0 \"- provizorní zadláždění překopů - dosyp pro výškové vyrovnání\"",null,99,null,null,null,null,null,null,null,null,null,null,null,null,null,null,null,null,null,null,null,null,null,null,null,null,null,null,null,null,null,null,null,null,null,null,null,null,null,"VV","2","2","True","1","ROZPOCET"]
[null,null,"26","K","564851011","Podklad ze štěrkodrti ŠD s rozprostřením a zhutněním plochy jednotlivě do 100 m2, po zhutnění tl. 150 mm","m2",207.9,null,{"$f":"ROUND(I167*H167,2)","v":0},"CS ÚRS 2022 01",null,"","základní",null,{"$f":"O167*H167","v":0},0,{"$f":"Q167*H167","v":0},0,{"$f":"S167*H167","v":0},null,null,null,null,null,null,null,null,null,null,null,null,null,null,null,null,null,null,null,null,null,null,null,"4",null,"K","2",null,null,null,"ROZPOCET",null,null,null,null,null,{"$f":"IF(N167=\"základní\",J167,0)","v":0},{"$f":"IF(N167=\"snížená\",J167,0)","v":0},{"$f":"IF(N167=\"zákl. přenesená\",J167,0)","v":0},{"$f":"IF(N167=\"sníž. přenesená\",J167,0)","v":0},{"$f":"IF(N167=\"nulová\",J167,0)","v":0},"1",{"$f":"ROUND(I167*H167,2)","v":0},"4","-2124731941"]
[null,null,null,"Online PSC",null,"https://podminky.urs.cz/item/CS_URS_2022_01/564851011",null,null,null,null,null,null,null,null,null,null,null,null,null,null,null,null,null,null,null,null,null,null,null,null,null,null,null,null,null,null,null,null,null,null,null,null,null,null,null,"Online PSC","2"]
[null,null,null,"VV","","2*99,0*1,05",null,207.9,null,null,null,null,null,null,null,null,null,null,null,null,null,null,null,null,null,null,null,null,null,null,null,null,null,null,null,null,null,null,null,null,null,null,null,null,null,"VV","2","2","True","1","ROZPOCET"]
[null,null,"27","K","5648510R1","Podklad ze štěrkodrti ŠD 32-63 s rozprostřením a zhutněním plochy jednotlivě do 100 m2, po zhutnění tl. 150 mm","m2",103.95,null,{"$f":"ROUND(I170*H170,2)","v":0},"",null,"","základní",null,{"$f":"O170*H170","v":0},0,{"$f":"Q170*H170","v":0},0,{"$f":"S170*H170","v":0},null,null,null,null,null,null,null,null,null,null,null,null,null,null,null,null,null,null,null,null,null,null,null,"4",null,"K","2",null,null,null,"ROZPOCET",null,null,null,null,null,{"$f":"IF(N170=\"základní\",J170,0)","v":0},{"$f":"IF(N170=\"snížená\",J170,0)","v":0},{"$f":"IF(N170=\"zákl. přenesená\",J170,0)","v":0},{"$f":"IF(N170=\"sníž. přenesená\",J170,0)","v":0},{"$f":"IF(N170=\"nulová\",J170,0)","v":0},"1",{"$f":"ROUND(I170*H170,2)","v":0},"4","-1041381346"]
[null,null,null,"VV","","99,0*1,05",null,103.95,null,null,null,null,null,null,null,null,null,null,null,null,null,null,null,null,null,null,null,null,null,null,null,null,null,null,null,null,null,null,null,null,null,null,null,null,null,"VV","2","2","True","1","ROZPOCET"]
[null,null,"28","K","565135121","Asfaltový beton vrstva podkladní ACP 16 (obalované kamenivo střednězrnné - OKS) s rozprostřením a zhutněním v pruhu šířky přes 3 m, po zhutnění tl. 50 mm","m2",99,null,{"$f":"ROUND(I172*H172,2)","v":0},"CS ÚRS 2022 01",null,"","základní",null,{"$f":"O172*H172","v":0},0,{"$f":"Q172*H172","v":0},0,{"$f":"S172*H172","v":0},null,null,null,null,null,null,null,null,null,null,null,null,null,null,null,null,null,null,null,null,null,null,null,"4",null,"K","2",null,null,null,"ROZPOCET",null,null,null,null,null,{"$f":"IF(N172=\"základní\",J172,0)","v":0},{"$f":"IF(N172=\"snížená\",J172,0)","v":0},{"$f":"IF(N172=\"zákl. přenesená\",J172,0)","v":0},{"$f":"IF(N172=\"sníž. přenesená\",J172,0)","v":0},{"$f":"IF(N172=\"nulová\",J172,0)","v":0},"1",{"$f":"ROUND(I172*H172,2)","v":0},"4","1399058109"]
[null,null,null,"Online PSC",null,"https://podminky.urs.cz/item/CS_URS_2022_01/565135121",null,null,null,null,null,null,null,null,null,null,null,null,null,null,null,null,null,null,null,null,null,null,null,null,null,null,null,null,null,null,null,null,null,null,null,null,null,null,null,"Online PSC","2"]
[null,null,null,"VV","","7,0+92,0",null,99,null,null,null,null,null,null,null,null,null,null,null,null,null,null,null,null,null,null,null,null,null,null,null,null,null,null,null,null,null,null,null,null,null,null,null,null,null,"VV","2","2","True","1","ROZPOCET"]
[null,null,"29","K","569851111","Zpevnění krajnic nebo komunikací pro pěší s rozprostřením a zhutněním, po zhutnění štěrkodrtí tl. 150 mm","m2",69,null,{"$f":"ROUND(I175*H175,2)","v":0},"CS ÚRS 2022 01",null,"","základní",null,{"$f":"O175*H175","v":0},0.34499999999999997,{"$f":"Q175*H175","v":23.805},0,{"$f":"S175*H175","v":0},null,null,null,null,null,null,null,null,null,null,null,null,null,null,null,null,null,null,null,null,null,null,null,"4",null,"K","2",null,null,null,"ROZPOCET",null,null,null,null,null,{"$f":"IF(N175=\"základní\",J175,0)","v":0},{"$f":"IF(N175=\"snížená\",J175,0)","v":0},{"$f":"IF(N175=\"zákl. přenesená\",J175,0)","v":0},{"$f":"IF(N175=\"sníž. přenesená\",J175,0)","v":0},{"$f":"IF(N175=\"nulová\",J175,0)","v":0},"1",{"$f":"ROUND(I175*H175,2)","v":0},"4","-1141229437"]
[null,null,null,"Online PSC",null,"https://podminky.urs.cz/item/CS_URS_2022_01/569851111",null,null,null,null,null,null,null,null,null,null,null,null,null,null,null,null,null,null,null,null,null,null,null,null,null,null,null,null,null,null,null,null,null,null,null,null,null,null,null,"Online PSC","2"]
[null,null,null,"VV","","0,750*92,0",null,69,null,null,null,null,null,null,null,null,null,null,null,null,null,null,null,null,null,null,null,null,null,null,null,null,null,null,null,null,null,null,null,null,null,null,null,null,null,"VV","2","2","True","1","ROZPOCET"]
[null,null,"30","K","573191111","Postřik infiltrační kationaktivní emulzí v množství 1,00 kg/m2","m2",99,null,{"$f":"ROUND(I178*H178,2)","v":0},"CS ÚRS 2022 01",null,"","základní",null,{"$f":"O178*H178","v":0},0,{"$f":"Q178*H178","v":0},0,{"$f":"S178*H178","v":0},null,null,null,null,null,null,null,null,null,null,null,null,null,null,null,null,null,null,null,null,null,null,null,"4",null,"K","2",null,null,null,"ROZPOCET",null,null,null,null,null,{"$f":"IF(N178=\"základní\",J178,0)","v":0},{"$f":"IF(N178=\"snížená\",J178,0)","v":0},{"$f":"IF(N178=\"zákl. přenesená\",J178,0)","v":0},{"$f":"IF(N178=\"sníž. přenesená\",J178,0)","v":0},{"$f":"IF(N178=\"nulová\",J178,0)","v":0},"1",{"$f":"ROUND(I178*H178,2)","v":0},"4","714078706"]
[null,null,null,"Online PSC",null,"https://podminky.urs.cz/item/CS_URS_2022_01/573191111",null,null,null,null,null,null,null,null,null,null,null,null,null,null,null,null,null,null,null,null,null,null,null,null,null,null,null,null,null,null,null,null,null,null,null,null,null,null,null,"Online PSC","2"]
[null,null,null,"VV","","7,0+92,0",null,99,null,null,null,null,null,null,null,null,null,null,null,null,null,null,null,null,null,null,null,null,null,null,null,null,null,null,null,null,null,null,null,null,null,null,null,null,null,"VV","2","2","True","1","ROZPOCET"]
[null,null,"31","K","573231106","Postřik spojovací PS bez posypu kamenivem ze silniční emulze, v množství 0,30 kg/m2","m2",444.5,null,{"$f":"ROUND(I181*H181,2)","v":0},"CS ÚRS 2022 01",null,"","základní",null,{"$f":"O181*H181","v":0},0,{"$f":"Q181*H181","v":0},0,{"$f":"S181*H181","v":0},null,null,null,null,null,null,null,null,null,null,null,null,null,null,null,null,null,null,null,null,null,null,null,"4",null,"K","2",null,null,null,"ROZPOCET",null,null,null,null,null,{"$f":"IF(N181=\"základní\",J181,0)","v":0},{"$f":"IF(N181=\"snížená\",J181,0)","v":0},{"$f":"IF(N181=\"zákl. přenesená\",J181,0)","v":0},{"$f":"IF(N181=\"sníž. přenesená\",J181,0)","v":0},{"$f":"IF(N181=\"nulová\",J181,0)","v":0},"1",{"$f":"ROUND(I181*H181,2)","v":0},"4","436938447"]
[null,null,null,"Online PSC",null,"https://podminky.urs.cz/item/CS_URS_2022_01/573231106",null,null,null,null,null,null,null,null,null,null,null,null,null,null,null,null,null,null,null,null,null,null,null,null,null,null,null,null,null,null,null,null,null,null,null,null,null,null,null,"Online PSC","2"]
[null,null,null,"VV","","345,50+99,0",null,444.5,null,null,null,null,null,null,null,null,null,null,null,null,null,null,null,null,null,null,null,null,null,null,null,null,null,null,null,null,null,null,null,null,null,null,null,null,null,"VV","2","2","True","1","ROZPOCET"]
[null,null,"32","K","577134121","Asfaltový beton vrstva obrusná ACO 11 (ABS) s rozprostřením a se zhutněním z nemodifikovaného asfaltu v pruhu šířky přes 3 m tř. I, po zhutnění tl. 40 mm","m2",345.5,null,{"$f":"ROUND(I184*H184,2)","v":0},"CS ÚRS 2022 01",null,"","základní",null,{"$f":"O184*H184","v":0},0,{"$f":"Q184*H184","v":0},0,{"$f":"S184*H184","v":0},null,null,null,null,null,null,null,null,null,null,null,null,null,null,null,null,null,null,null,null,null,null,null,"4",null,"K","2",null,null,null,"ROZPOCET",null,null,null,null,null,{"$f":"IF(N184=\"základní\",J184,0)","v":0},{"$f":"IF(N184=\"snížená\",J184,0)","v":0},{"$f":"IF(N184=\"zákl. přenesená\",J184,0)","v":0},{"$f":"IF(N184=\"sníž. přenesená\",J184,0)","v":0},{"$f":"IF(N184=\"nulová\",J184,0)","v":0},"1",{"$f":"ROUND(I184*H184,2)","v":0},"4","-1825424304"]
[null,null,null,"Online PSC",null,"https://podminky.urs.cz/item/CS_URS_2022_01/577134121",null,null,null,null,null,null,null,null,null,null,null,null,null,null,null,null,null,null,null,null,null,null,null,null,null,null,null,null,null,null,null,null,null,null,null,null,null,null,null,"Online PSC","2"]
[null,null,null,"VV","","47,0+298,50",null,345.5,null,null,null,null,null,null,null,null,null,null,null,null,null,null,null,null,null,null,null,null,null,null,null,null,null,null,null,null,null,null,null,null,null,null,null,null,null,"VV","2","2","True","1","ROZPOCET"]
[null,null,"33","K","577155122","Asfaltový beton vrstva ložní ACL 16 (ABH) s rozprostřením a zhutněním z nemodifikovaného asfaltu v pruhu šířky přes 3 m, po zhutnění tl. 60 mm","m2",99,null,{"$f":"ROUND(I187*H187,2)","v":0},"CS ÚRS 2022 01",null,"","základní",null,{"$f":"O187*H187","v":0},0,{"$f":"Q187*H187","v":0},0,{"$f":"S187*H187","v":0},null,null,null,null,null,null,null,null,null,null,null,null,null,null,null,null,null,null,null,null,null,null,null,"4",null,"K","2",null,null,null,"ROZPOCET",null,null,null,null,null,{"$f":"IF(N187=\"základní\",J187,0)","v":0},{"$f":"IF(N187=\"snížená\",J187,0)","v":0},{"$f":"IF(N187=\"zákl. přenesená\",J187,0)","v":0},{"$f":"IF(N187=\"sníž. přenesená\",J187,0)","v":0},{"$f":"IF(N187=\"nulová\",J187,0)","v":0},"1",{"$f":"ROUND(I187*H187,2)","v":0},"4","-1406334307"]
[null,null,null,"Online PSC",null,"https://podminky.urs.cz/item/CS_URS_2022_01/577155122",null,null,null,null,null,null,null,null,null,null,null,null,null,null,null,null,null,null,null,null,null,null,null,null,null,null,null,null,null,null,null,null,null,null,null,null,null,null,null,"Online PSC","2"]
[null,null,null,"VV","","7,0+92,0",null,99,null,null,null,null,null,null,null,null,null,null,null,null,null,null,null,null,null,null,null,null,null,null,null,null,null,null,null,null,null,null,null,null,null,null,null,null,null,"VV","2","2","True","1","ROZPOCET"]
[null,null,"34","K","596212210","Kladení dlažby z betonových zámkových dlaždic pozemních komunikací ručně s ložem z kameniva těženého nebo drceného tl. do 50 mm, s vyplněním spár, s dvojitým hutněním vibrováním a se smetením přebytečného materiálu na krajnici tl. 80 mm skupiny A, pro plochy do 50 m2","m2",14,null,{"$f":"ROUND(I190*H190,2)","v":0},"CS ÚRS 2022 01",null,"","základní",null,{"$f":"O190*H190","v":0},0.11162,{"$f":"Q190*H190","v":1.5626799999999998},0,{"$f":"S190*H190","v":0},null,null,null,null,null,null,null,null,null,null,null,null,null,null,null,null,null,null,null,null,null,null,null,"4",null,"K","2",null,null,null,"ROZPOCET",null,null,null,null,null,{"$f":"IF(N190=\"základní\",J190,0)","v":0},{"$f":"IF(N190=\"snížená\",J190,0)","v":0},{"$f":"IF(N190=\"zákl. přenesená\",J190,0)","v":0},{"$f":"IF(N190=\"sníž. přenesená\",J190,0)","v":0},{"$f":"IF(N190=\"nulová\",J190,0)","v":0},"1",{"$f":"ROUND(I190*H190,2)","v":0},"4","856370771"]
[null,null,null,"Online PSC",null,"https://podminky.urs.cz/item/CS_URS_2022_01/596212210",null,null,null,null,null,null,null,null,null,null,null,null,null,null,null,null,null,null,null,null,null,null,null,null,null,null,null,null,null,null,null,null,null,null,null,null,null,null,null,"Online PSC","2"]
[null,null,null,"VV","","7,0+7,0",null,14,null,null,null,null,null,null,null,null,null,null,null,null,null,null,null,null,null,null,null,null,null,null,null,null,null,null,null,null,null,null,null,null,null,null,null,null,null,"VV","2","2","True","1","ROZPOCET"]
[null,null,"35","M","59245213","dlažba zámková tvaru I 196x161x80mm přírodní","m2",14.42,null,{"$f":"ROUND(I193*H193,2)","v":0},"CS ÚRS 2022 01",null,"","základní",null,{"$f":"O193*H193","v":0},0.17599999999999999,{"$f":"Q193*H193","v":2.5379199999999997},0,{"$f":"S193*H193","v":0},null,null,null,null,null,null,null,null,null,null,null,null,null,null,null,null,null,null,null,null,null,null,null,"8",null,"M","2",null,null,null,"ROZPOCET",null,null,null,null,null,{"$f":"IF(N193=\"základní\",J193,0)","v":0},{"$f":"IF(N193=\"snížená\",J193,0)","v":0},{"$f":"IF(N193=\"zákl. přenesená\",J193,0)","v":0},{"$f":"IF(N193=\"sníž. přenesená\",J193,0)","v":0},{"$f":"IF(N193=\"nulová\",J193,0)","v":0},"1",{"$f":"ROUND(I193*H193,2)","v":0},"4","-1621040836"]
[null,null,null,"VV","","7,0+7,0",null,14,null,null,null,null,null,null,null,null,null,null,null,null,null,null,null,null,null,null,null,null,null,null,null,null,null,null,null,null,null,null,null,null,null,null,null,null,null,"VV","2","2","True","1","ROZPOCET"]
[null,null,null,"VV",null,"14*1,03 'Přepočtené koeficientem množství",null,14.42,null,null,null,null,null,null,null,null,null,null,null,null,null,null,null,null,null,null,null,null,null,null,null,null,null,null,null,null,null,null,null,null,null,null,null,null,null,"VV","2","2","False","1","ROZPOCET"]
[null,null,null,"D","8","Trubní vedení",null,null,null,{"$f":"BK196","v":0},null,null,null,null,null,{"$f":"SUM(P197:P236)","v":0},null,{"$f":"SUM(R197:R236)","v":37.913576000000006},null,{"$f":"SUM(T197:T236)","v":0.38861000000000001},null,null,null,null,null,null,null,null,null,null,null,null,null,null,null,null,null,null,null,null,null,null,null,"1",null,"D","1",null,null,null,"ROZPOCET",null,null,null,null,null,null,null,null,null,null,null,{"$f":"SUM(BK197:BK236)","v":0}]
[null,null,"36","K","1000001","Zkouška průchodnosti volným předmětem vodovodního potrubí DN 200","m",1026.5999999999999,null,{"$f":"ROUND(I197*H197,2)","v":0},"",null,"","základní",null,{"$f":"O197*H197","v":0},0,{"$f":"Q197*H197","v":0},0,{"$f":"S197*H197","v":0},null,null,null,null,null,null,null,null,null,null,null,null,null,null,null,null,null,null,null,null,null,null,null,"4",null,"K","2",null,null,null,"ROZPOCET",null,null,null,null,null,{"$f":"IF(N197=\"základní\",J197,0)","v":0},{"$f":"IF(N197=\"snížená\",J197,0)","v":0},{"$f":"IF(N197=\"zákl. přenesená\",J197,0)","v":0},{"$f":"IF(N197=\"sníž. přenesená\",J197,0)","v":0},{"$f":"IF(N197=\"nulová\",J197,0)","v":0},"1",{"$f":"ROUND(I197*H197,2)","v":0},"4","-956479541"]
[null,null,"37","K","460490001","Krytí bílou výstražnou fólií s nápisem VODOVOD z PVC šířky do 20 cm včetně pokládky ","m",1026.5999999999999,null,{"$f":"ROUND(I198*H198,2)","v":0},"",null,"","základní",null,{"$f":"O198*H198","v":0},0,{"$f":"Q198*H198","v":0},0,{"$f":"S198*H198","v":0},null,null,null,null,null,null,null,null,null,null,null,null,null,null,null,null,null,null,null,null,null,null,null,"4",null,"K","2",null,null,null,"ROZPOCET",null,null,null,null,null,{"$f":"IF(N198=\"základní\",J198,0)","v":0},{"$f":"IF(N198=\"snížená\",J198,0)","v":0},{"$f":"IF(N198=\"zákl. přenesená\",J198,0)","v":0},{"$f":"IF(N198=\"sníž. přenesená\",J198,0)","v":0},{"$f":"IF(N198=\"nulová\",J198,0)","v":0},"1",{"$f":"ROUND(I198*H198,2)","v":0},"4","-869507163"]
[null,null,"38","M","341110120","kabel silový NYY-J2x4 mm2-identifikační vodič včetně pokládky","m",2053.1999999999998,null,{"$f":"ROUND(I199*H199,2)","v":0},"CS ÚRS 2016 01",null,"","základní",null,{"$f":"O199*H199","v":0},1.8000000000000001E-4,{"$f":"Q199*H199","v":0.36957600000000002},0,{"$f":"S199*H199","v":0},null,null,null,null,null,null,null,null,null,null,null,null,null,null,null,null,null,null,null,null,null,null,null,"8",null,"M","2",null,null,null,"ROZPOCET",null,null,null,null,null,{"$f":"IF(N199=\"základní\",J199,0)","v":0},{"$f":"IF(N199=\"snížená\",J199,0)","v":0},{"$f":"IF(N199=\"zákl. přenesená\",J199,0)","v":0},{"$f":"IF(N199=\"sníž. přenesená\",J199,0)","v":0},{"$f":"IF(N199=\"nulová\",J199,0)","v":0},"1",{"$f":"ROUND(I199*H199,2)","v":0},"4","-903959751"]
[null,null,null,"VV","","1026,6*2 \"identifikační kabel\"",null,2053.1999999999998,null,null,null,null,null,null,null,null,null,null,null,null,null,null,null,null,null,null,null,null,null,null,null,null,null,null,null,null,null,null,null,null,null,null,null,null,null,"VV","2","2","True","1","ROZPOCET"]
[null,null,"39","K","850245121","Výřez nebo výsek na potrubí z trub litinových tlakových DN 80","kus",1,null,{"$f":"ROUND(I201*H201,2)","v":0},"CS ÚRS 2016 01",null,"","základní",null,{"$f":"O201*H201","v":0},0,{"$f":"Q201*H201","v":0},0,{"$f":"S201*H201","v":0},null,null,null,null,null,null,null,null,null,null,null,null,null,null,null,null,null,null,null,null,null,null,null,"4",null,"K","2",null,null,null,"ROZPOCET",null,null,null,null,null,{"$f":"IF(N201=\"základní\",J201,0)","v":0},{"$f":"IF(N201=\"snížená\",J201,0)","v":0},{"$f":"IF(N201=\"zákl. přenesená\",J201,0)","v":0},{"$f":"IF(N201=\"sníž. přenesená\",J201,0)","v":0},{"$f":"IF(N201=\"nulová\",J201,0)","v":0},"1",{"$f":"ROUND(I201*H201,2)","v":0},"4","-2029213943"]
[null,null,"40","K","850315121","Výřez nebo výsek na potrubí z trub litinových tlakových nebo plastických hmot DN 150","kus",2,null,{"$f":"ROUND(I202*H202,2)","v":0},"CS ÚRS 2022 01",null,"","základní",null,{"$f":"O202*H202","v":0},0,{"$f":"Q202*H202","v":0},0,{"$f":"S202*H202","v":0},null,null,null,null,null,null,null,null,null,null,null,null,null,null,null,null,null,null,null,null,null,null,null,"4",null,"K","2",null,null,null,"ROZPOCET",null,null,null,null,null,{"$f":"IF(N202=\"základní\",J202,0)","v":0},{"$f":"IF(N202=\"snížená\",J202,0)","v":0},{"$f":"IF(N202=\"zákl. přenesená\",J202,0)","v":0},{"$f":"IF(N202=\"sníž. přenesená\",J202,0)","v":0},{"$f":"IF(N202=\"nulová\",J202,0)","v":0},"1",{"$f":"ROUND(I202*H202,2)","v":0},"4","-11885013"]
[null,null,null,"Online PSC",null,"https://podminky.urs.cz/item/CS_URS_2022_01/850315121",null,null,null,null,null,null,null,null,null,null,null,null,null,null,null,null,null,null,null,null,null,null,null,null,null,null,null,null,null,null,null,null,null,null,null,null,null,null,null,"Online PSC","2"]
[null,null,"41","K","851351131","Montáž potrubí z trub litinových tlakových hrdlových v otevřeném výkopu s integrovaným těsněním DN 200","m",1026.5999999999999,null,{"$f":"ROUND(I204*H204,2)","v":0},"CS ÚRS 2022 01",null,"","základní",null,{"$f":"O204*H204","v":0},0,{"$f":"Q204*H204","v":0},0,{"$f":"S204*H204","v":0},null,null,null,null,null,null,null,null,null,null,null,null,null,null,null,null,null,null,null,null,null,null,null,"4",null,"K","2",null,null,null,"ROZPOCET",null,null,null,null,null,{"$f":"IF(N204=\"základní\",J204,0)","v":0},{"$f":"IF(N204=\"snížená\",J204,0)","v":0},{"$f":"IF(N204=\"zákl. přenesená\",J204,0)","v":0},{"$f":"IF(N204=\"sníž. přenesená\",J204,0)","v":0},{"$f":"IF(N204=\"nulová\",J204,0)","v":0},"1",{"$f":"ROUND(I204*H204,2)","v":0},"4","1238284917"]
[null,null,null,"Online PSC",null,"https://podminky.urs.cz/item/CS_URS_2022_01/851351131",null,null,null,null,null,null,null,null,null,null,null,null,null,null,null,null,null,null,null,null,null,null,null,null,null,null,null,null,null,null,null,null,null,null,null,null,null,null,null,"Online PSC","2"]
[null,null,"42","M","55253004","trouba vodovodní litinová hrdlová Pz dl 6m DN 200","m",1026.5999999999999,null,{"$f":"ROUND(I206*H206,2)","v":0},"CS ÚRS 2022 01",null,"","základní",null,{"$f":"O206*H206","v":0},3.5999999999999997E-2,{"$f":"Q206*H206","v":36.957599999999992},0,{"$f":"S206*H206","v":0},null,null,null,null,null,null,null,null,null,null,null,null,null,null,null,null,null,null,null,null,null,null,null,"8",null,"M","2",null,null,null,"ROZPOCET",null,null,null,null,null,{"$f":"IF(N206=\"základní\",J206,0)","v":0},{"$f":"IF(N206=\"snížená\",J206,0)","v":0},{"$f":"IF(N206=\"zákl. přenesená\",J206,0)","v":0},{"$f":"IF(N206=\"sníž. přenesená\",J206,0)","v":0},{"$f":"IF(N206=\"nulová\",J206,0)","v":0},"1",{"$f":"ROUND(I206*H206,2)","v":0},"4","345618678"]
[null,null,"43","M","PAM.JSB20BA","kroužek těsnící gumový STANDARD DN 200","kus",172,null,{"$f":"ROUND(I207*H207,2)","v":0},"",null,"","základní",null,{"$f":"O207*H207","v":0},2.9999999999999997E-4,{"$f":"Q207*H207","v":5.1599999999999993E-2},0,{"$f":"S207*H207","v":0},null,null,null,null,null,null,null,null,null,null,null,null,null,null,null,null,null,null,null,null,null,null,null,"8",null,"M","2",null,null,null,"ROZPOCET",null,null,null,null,null,{"$f":"IF(N207=\"základní\",J207,0)","v":0},{"$f":"IF(N207=\"snížená\",J207,0)","v":0},{"$f":"IF(N207=\"zákl. přenesená\",J207,0)","v":0},{"$f":"IF(N207=\"sníž. přenesená\",J207,0)","v":0},{"$f":"IF(N207=\"nulová\",J207,0)","v":0},"1",{"$f":"ROUND(I207*H207,2)","v":0},"4","-481457872"]
[null,null,"44","M","PAM.JSB20B1","Kroužek DN 200 STD, EPDM těsnicí","kus",15,null,{"$f":"ROUND(I208*H208,2)","v":0},"",null,"","základní",null,{"$f":"O208*H208","v":0},2.9999999999999997E-4,{"$f":"Q208*H208","v":4.4999999999999997E-3},0,{"$f":"S208*H208","v":0},null,null,null,null,null,null,null,null,null,null,null,null,null,null,null,null,null,null,null,null,null,null,null,"8",null,"M","2",null,null,null,"ROZPOCET",null,null,null,null,null,{"$f":"IF(N208=\"základní\",J208,0)","v":0},{"$f":"IF(N208=\"snížená\",J208,0)","v":0},{"$f":"IF(N208=\"zákl. přenesená\",J208,0)","v":0},{"$f":"IF(N208=\"sníž. přenesená\",J208,0)","v":0},{"$f":"IF(N208=\"nulová\",J208,0)","v":0},"1",{"$f":"ROUND(I208*H208,2)","v":0},"4","-1060619116"]
[null,null,"45","K","857312122","Montáž litinových tvarovek na potrubí litinovém tlakovém jednoosých na potrubí z trub přírubových v otevřeném výkopu, kanálu nebo v šachtě DN 150","kus",2,null,{"$f":"ROUND(I209*H209,2)","v":0},"CS ÚRS 2020 01",null,"","základní",null,{"$f":"O209*H209","v":0},2.96E-3,{"$f":"Q209*H209","v":5.9199999999999999E-3},0,{"$f":"S209*H209","v":0},null,null,null,null,null,null,null,null,null,null,null,null,null,null,null,null,null,null,null,null,null,null,null,"4",null,"K","2",null,null,null,"ROZPOCET",null,null,null,null,null,{"$f":"IF(N209=\"základní\",J209,0)","v":0},{"$f":"IF(N209=\"snížená\",J209,0)","v":0},{"$f":"IF(N209=\"zákl. přenesená\",J209,0)","v":0},{"$f":"IF(N209=\"sníž. přenesená\",J209,0)","v":0},{"$f":"IF(N209=\"nulová\",J209,0)","v":0},"1",{"$f":"ROUND(I209*H209,2)","v":0},"4","1490005495"]
[null,null,"46","K","857314122","Montáž litinových tvarovek na potrubí litinovém tlakovém odbočných na potrubí z trub přírubových v otevřeném výkopu, kanálu nebo v šachtě DN 150","kus",1,null,{"$f":"ROUND(I210*H210,2)","v":0},"CS ÚRS 2022 01",null,"","základní",null,{"$f":"O210*H210","v":0},3.8E-3,{"$f":"Q210*H210","v":3.8E-3},3.3700000000000001E-2,{"$f":"S210*H210","v":3.3700000000000001E-2},null,null,null,null,null,null,null,null,null,null,null,null,null,null,null,null,null,null,null,null,null,null,null,"4",null,"K","2",null,null,null,"ROZPOCET",null,null,null,null,null,{"$f":"IF(N210=\"základní\",J210,0)","v":0},{"$f":"IF(N210=\"snížená\",J210,0)","v":0},{"$f":"IF(N210=\"zákl. přenesená\",J210,0)","v":0},{"$f":"IF(N210=\"sníž. přenesená\",J210,0)","v":0},{"$f":"IF(N210=\"nulová\",J210,0)","v":0},"1",{"$f":"ROUND(I210*H210,2)","v":0},"4","652692234"]
[null,null,null,"Online PSC",null,"https://podminky.urs.cz/item/CS_URS_2022_01/857314122",null,null,null,null,null,null,null,null,null,null,null,null,null,null,null,null,null,null,null,null,null,null,null,null,null,null,null,null,null,null,null,null,null,null,null,null,null,null,null,"Online PSC","2"]
[null,null,"47","K","857351131","Montáž litinových tvarovek na potrubí litinovém tlakovém jednoosých na potrubí z trub hrdlových v otevřeném výkopu, kanálu nebo v šachtě s integrovaným těsněním DN 200","kus",10,null,{"$f":"ROUND(I212*H212,2)","v":0},"CS ÚRS 2022 01",null,"","základní",null,{"$f":"O212*H212","v":0},0,{"$f":"Q212*H212","v":0},3.1699999999999999E-2,{"$f":"S212*H212","v":0.317},null,null,null,null,null,null,null,null,null,null,null,null,null,null,null,null,null,null,null,null,null,null,null,"4",null,"K","2",null,null,null,"ROZPOCET",null,null,null,null,null,{"$f":"IF(N212=\"základní\",J212,0)","v":0},{"$f":"IF(N212=\"snížená\",J212,0)","v":0},{"$f":"IF(N212=\"zákl. přenesená\",J212,0)","v":0},{"$f":"IF(N212=\"sníž. přenesená\",J212,0)","v":0},{"$f":"IF(N212=\"nulová\",J212,0)","v":0},"1",{"$f":"ROUND(I212*H212,2)","v":0},"4","1634718621"]
[null,null,null,"Online PSC",null,"https://podminky.urs.cz/item/CS_URS_2022_01/857351131",null,null,null,null,null,null,null,null,null,null,null,null,null,null,null,null,null,null,null,null,null,null,null,null,null,null,null,null,null,null,null,null,null,null,null,null,null,null,null,"Online PSC","2"]
[null,null,"48","K","857352122","Montáž litinových tvarovek na potrubí litinovém tlakovém jednoosých na potrubí z trub přírubových v otevřeném výkopu, kanálu nebo v šachtě DN 200","kus",1,null,{"$f":"ROUND(I214*H214,2)","v":0},"CS ÚRS 2022 01",null,"","základní",null,{"$f":"O214*H214","v":0},3.0100000000000001E-3,{"$f":"Q214*H214","v":3.0100000000000001E-3},3.7909999999999999E-2,{"$f":"S214*H214","v":3.7909999999999999E-2},null,null,null,null,null,null,null,null,null,null,null,null,null,null,null,null,null,null,null,null,null,null,null,"4",null,"K","2",null,null,null,"ROZPOCET",null,null,null,null,null,{"$f":"IF(N214=\"základní\",J214,0)","v":0},{"$f":"IF(N214=\"snížená\",J214,0)","v":0},{"$f":"IF(N214=\"zákl. přenesená\",J214,0)","v":0},{"$f":"IF(N214=\"sníž. přenesená\",J214,0)","v":0},{"$f":"IF(N214=\"nulová\",J214,0)","v":0},"1",{"$f":"ROUND(I214*H214,2)","v":0},"4","-1139652821"]
[null,null,null,"Online PSC",null,"https://podminky.urs.cz/item/CS_URS_2022_01/857352122",null,null,null,null,null,null,null,null,null,null,null,null,null,null,null,null,null,null,null,null,null,null,null,null,null,null,null,null,null,null,null,null,null,null,null,null,null,null,null,"Online PSC","2"]
[null,null,"49","M","55253908","koleno hrdlové z tvárné litiny,práškový epoxid tl 250µm MMK-kus DN 200-11,25°","kus",1,null,{"$f":"ROUND(I216*H216,2)","v":0},"CS ÚRS 2022 01",null,"","základní",null,{"$f":"O216*H216","v":0},1.9900000000000001E-2,{"$f":"Q216*H216","v":1.9900000000000001E-2},0,{"$f":"S216*H216","v":0},null,null,null,null,null,null,null,null,null,null,null,null,null,null,null,null,null,null,null,null,null,null,null,"8",null,"M","2",null,null,null,"ROZPOCET",null,null,null,null,null,{"$f":"IF(N216=\"základní\",J216,0)","v":0},{"$f":"IF(N216=\"snížená\",J216,0)","v":0},{"$f":"IF(N216=\"zákl. přenesená\",J216,0)","v":0},{"$f":"IF(N216=\"sníž. přenesená\",J216,0)","v":0},{"$f":"IF(N216=\"nulová\",J216,0)","v":0},"1",{"$f":"ROUND(I216*H216,2)","v":0},"4","2059558782"]
[null,null,"50","M","55253920","koleno hrdlové z tvárné litiny,práškový epoxid tl 250µm MMK-kus DN 200-22,5°","kus",2,null,{"$f":"ROUND(I217*H217,2)","v":0},"CS ÚRS 2022 01",null,"","základní",null,{"$f":"O217*H217","v":0},2.1299999999999999E-2,{"$f":"Q217*H217","v":4.2599999999999999E-2},0,{"$f":"S217*H217","v":0},null,null,null,null,null,null,null,null,null,null,null,null,null,null,null,null,null,null,null,null,null,null,null,"8",null,"M","2",null,null,null,"ROZPOCET",null,null,null,null,null,{"$f":"IF(N217=\"základní\",J217,0)","v":0},{"$f":"IF(N217=\"snížená\",J217,0)","v":0},{"$f":"IF(N217=\"zákl. přenesená\",J217,0)","v":0},{"$f":"IF(N217=\"sníž. přenesená\",J217,0)","v":0},{"$f":"IF(N217=\"nulová\",J217,0)","v":0},"1",{"$f":"ROUND(I217*H217,2)","v":0},"4","399794819"]
[null,null,"51","M","55253944","koleno hrdlové z tvárné litiny,práškový epoxid tl 250µm MMK-kus DN 200-45°","kus",5,null,{"$f":"ROUND(I218*H218,2)","v":0},"CS ÚRS 2022 01",null,"","základní",null,{"$f":"O218*H218","v":0},2.41E-2,{"$f":"Q218*H218","v":0.1205},0,{"$f":"S218*H218","v":0},null,null,null,null,null,null,null,null,null,null,null,null,null,null,null,null,null,null,null,null,null,null,null,"8",null,"M","2",null,null,null,"ROZPOCET",null,null,null,null,null,{"$f":"IF(N218=\"základní\",J218,0)","v":0},{"$f":"IF(N218=\"snížená\",J218,0)","v":0},{"$f":"IF(N218=\"zákl. přenesená\",J218,0)","v":0},{"$f":"IF(N218=\"sníž. přenesená\",J218,0)","v":0},{"$f":"IF(N218=\"nulová\",J218,0)","v":0},"1",{"$f":"ROUND(I218*H218,2)","v":0},"4","-57235891"]
[null,null,"52","M","55259819","přechod přírubový tvárná litina dl 200mm DN 150/80","kus",2,null,{"$f":"ROUND(I219*H219,2)","v":0},"CS ÚRS 2020 01",null,"","základní",null,{"$f":"O219*H219","v":0},1.5599999999999999E-2,{"$f":"Q219*H219","v":3.1199999999999999E-2},0,{"$f":"S219*H219","v":0},null,null,null,null,null,null,null,null,null,null,null,null,null,null,null,null,null,null,null,null,null,null,null,"8",null,"M","2",null,null,null,"ROZPOCET",null,null,null,null,null,{"$f":"IF(N219=\"základní\",J219,0)","v":0},{"$f":"IF(N219=\"snížená\",J219,0)","v":0},{"$f":"IF(N219=\"zákl. přenesená\",J219,0)","v":0},{"$f":"IF(N219=\"sníž. přenesená\",J219,0)","v":0},{"$f":"IF(N219=\"nulová\",J219,0)","v":0},"1",{"$f":"ROUND(I219*H219,2)","v":0},"4","-1375707254"]
[null,null,null,"VV","","1,98019801980198*1,01 \"Přepočtené koeficientem množství",null,2,null,null,null,null,null,null,null,null,null,null,null,null,null,null,null,null,null,null,null,null,null,null,null,null,null,null,null,null,null,null,null,null,null,null,null,null,null,"VV","2","2","True","1","ROZPOCET"]
[null,null,"53","M","55259826","přechod přírubový tvárná litina dl 200mm DN 200/150","kus",1,null,{"$f":"ROUND(I221*H221,2)","v":0},"CS ÚRS 2022 01",null,"","základní",null,{"$f":"O221*H221","v":0},2.35E-2,{"$f":"Q221*H221","v":2.35E-2},0,{"$f":"S221*H221","v":0},null,null,null,null,null,null,null,null,null,null,null,null,null,null,null,null,null,null,null,null,null,null,null,"8",null,"M","2",null,null,null,"ROZPOCET",null,null,null,null,null,{"$f":"IF(N221=\"základní\",J221,0)","v":0},{"$f":"IF(N221=\"snížená\",J221,0)","v":0},{"$f":"IF(N221=\"zákl. přenesená\",J221,0)","v":0},{"$f":"IF(N221=\"sníž. přenesená\",J221,0)","v":0},{"$f":"IF(N221=\"nulová\",J221,0)","v":0},"1",{"$f":"ROUND(I221*H221,2)","v":0},"4","-1991248153"]
[null,null,"54","M","55253595","kříž přírubový litinový PN10/16 TT-kus DN 150/150","kus",1,null,0,"CS ÚRS 2022 01",null,"","základní",null,0,4.1500000000000002E-2,4.1500000000000002E-2,0,0,null,null,null,null,null,null,null,null,null,null,null,null,null,null,null,null,null,null,null,null,null,null,null,"8",null,"M","2",null,null,null,"ROZPOCET",null,null,null,null,null,0,0,0,0,0,"1",0,"4","1530831881"]
[null,null,"55","M","55259713","přesuvka hrdlová U tvárná litina základní povrchová ochrana včetně 2x spoj těsnící dl 165mm DN 150","kus",1,null,0,"CS ÚRS 2022 01",null,"","základní",null,0,1.23E-2,1.23E-2,0,0,null,null,null,null,null,null,null,null,null,null,null,null,null,null,null,null,null,null,null,null,null,null,null,"8",null,"M","2",null,null,null,"ROZPOCET",null,null,null,null,null,0,0,0,0,0,"1",0,"4","-1856603917"]
[null,null,"56","M","55253868","přechod hrdlový z tvárné litiny,práškový epoxid tl 250µm MMR-kus DN 200/150","kus",1,null,0,"CS ÚRS 2022 01",null,"","základní",null,0,1.78E-2,1.78E-2,0,0,null,null,null,null,null,null,null,null,null,null,null,null,null,null,null,null,null,null,null,null,null,null,null,"8",null,"M","2",null,null,null,"ROZPOCET",null,null,null,null,null,0,0,0,0,0,"1",0,"4","-1523292507"]
[null,null,"57","M","55253896","tvarovka přírubová s hrdlem z tvárné litiny,práškový epoxid tl 250µm EU-kus dl 140mm DN 200","kus",1,null,0,"CS ÚRS 2022 01",null,"","základní",null,0,1.8599999999999998E-2,1.8599999999999998E-2,0,0,null,null,null,null,null,null,null,null,null,null,null,null,null,null,null,null,null,null,null,null,null,null,null,"8",null,"M","2",null,null,null,"ROZPOCET",null,null,null,null,null,0,0,0,0,0,"1",0,"4","1662099346"]
[null,null,"58","M","42221221","šoupě přírubové vodovodní krátká stavební dl DN 200 PN16 - DODÁVKA VaK MB","kus",1,null,0,"CS ÚRS 2022 01",null,"","základní",null,0,6.6000000000000003E-2,6.6000000000000003E-2,0,0,null,null,null,null,null,null,null,null,null,null,null,null,null,null,null,null,null,null,null,null,null,null,null,"8",null,"M","2",null,null,null,"ROZPOCET",null,null,null,null,null,0,0,0,0,0,"1",0,"4","-891230411"]
[null,null,"59","M","42291063","souprava zemní pro šoupátka DN 200mm - DODÁVKA VaK MB","kus",1,null,0,"CS ÚRS 2022 01",null,"","základní",null,0,4.4999999999999997E-3,4.4999999999999997E-3,0,0,null,null,null,null,null,null,null,null,null,null,null,null,null,null,null,null,null,null,null,null,null,null,null,"8",null,"M","2",null,null,null,"ROZPOCET",null,null,null,null,null,0,0,0,0,0,"1",0,"4","-862804929"]
[null,null,"60","K","891247113","Demontáž hydrantů podzemních DN 80 komplet-stan.1026,6","kus",1,null,0,"",null,"","základní",null,0,1.3600000000000001E-3,1.3600000000000001E-3,0,0,null,null,null,null,null,null,null,null,null,null,null,null,null,null,null,null,null,null,null,null,null,null,null,"4",null,"K","2",null,null,null,"ROZPOCET",null,null,null,null,null,0,0,0,0,0,"1",0,"4","-320038060"]
[null,null,"61","K","891351112","Montáž vodovodních armatur na potrubí šoupátek nebo klapek uzavíracích v otevřeném výkopu nebo v šachtách s osazením zemní soupravy (bez poklopů) DN 200","kus",1,null,0,"CS ÚRS 2022 01",null,"","základní",null,0,3.0100000000000001E-3,3.0100000000000001E-3,0,0,null,null,null,null,null,null,null,null,null,null,null,null,null,null,null,null,null,null,null,null,null,null,null,"4",null,"K","2",null,null,null,"ROZPOCET",null,null,null,null,null,0,0,0,0,0,"1",0,"4","-2081523255"]
[null,null,null,"Online PSC",null,"https://podminky.urs.cz/item/CS_URS_2022_01/891351112",null,null,null,null,null,null,null,null,null,null,null,null,null,null,null,null,null,null,null,null,null,null,null,null,null,null,null,null,null,null,null,null,null,null,null,null,null,null,null,"Online PSC","2"]
[null,null,"62","K","892351111","Tlakové zkoušky vodou na potrubí DN 150 nebo 200","m",1026.5999999999999,null,{"$f":"ROUND(I231*H231,2)","v":0},"CS ÚRS 2022 01",null,"","základní",null,{"$f":"O231*H231","v":0},0,{"$f":"Q231*H231","v":0},0,{"$f":"S231*H231","v":0},null,null,null,null,null,null,null,null,null,null,null,null,null,null,null,null,null,null,null,null,null,null,null,"4",null,"K","2",null,null,null,"ROZPOCET",null,null,null,null,null,{"$f":"IF(N231=\"základní\",J231,0)","v":0},{"$f":"IF(N231=\"snížená\",J231,0)","v":0},{"$f":"IF(N231=\"zákl. přenesená\",J231,0)","v":0},{"$f":"IF(N231=\"sníž. přenesená\",J231,0)","v":0},{"$f":"IF(N231=\"nulová\",J231,0)","v":0},"1",{"$f":"ROUND(I231*H231,2)","v":0},"4","951330464"]
[null,null,null,"Online PSC",null,"https://podminky.urs.cz/item/CS_URS_2022_01/892351111",null,null,null,null,null,null,null,null,null,null,null,null,null,null,null,null,null,null,null,null,null,null,null,null,null,null,null,null,null,null,null,null,null,null,null,null,null,null,null,"Online PSC","2"]
[null,null,"63","K","892353122","Proplach a dezinfekce vodovodního potrubí DN 150 nebo 200","m",1026.5999999999999,null,{"$f":"ROUND(I233*H233,2)","v":0},"CS ÚRS 2022 01",null,"","základní",null,{"$f":"O233*H233","v":0},0,{"$f":"Q233*H233","v":0},0,{"$f":"S233*H233","v":0},null,null,null,null,null,null,null,null,null,null,null,null,null,null,null,null,null,null,null,null,null,null,null,"4",null,"K","2",null,null,null,"ROZPOCET",null,null,null,null,null,{"$f":"IF(N233=\"základní\",J233,0)","v":0},{"$f":"IF(N233=\"snížená\",J233,0)","v":0},{"$f":"IF(N233=\"zákl. přenesená\",J233,0)","v":0},{"$f":"IF(N233=\"sníž. přenesená\",J233,0)","v":0},{"$f":"IF(N233=\"nulová\",J233,0)","v":0},"1",{"$f":"ROUND(I233*H233,2)","v":0},"4","1033667313"]
[null,null,null,"Online PSC",null,"https://podminky.urs.cz/item/CS_URS_2022_01/892353122",null,null,null,null,null,null,null,null,null,null,null,null,null,null,null,null,null,null,null,null,null,null,null,null,null,null,null,null,null,null,null,null,null,null,null,null,null,null,null,"Online PSC","2"]
[null,null,"64","K","899401112","Osazení poklopů litinových šoupátkových","kus",1,null,{"$f":"ROUND(I235*H235,2)","v":0},"",null,"","základní",null,{"$f":"O235*H235","v":0},0.10150000000000001,{"$f":"Q235*H235","v":0.10150000000000001},0,{"$f":"S235*H235","v":0},null,null,null,null,null,null,null,null,null,null,null,null,null,null,null,null,null,null,null,null,null,null,null,"4",null,"K","2",null,null,null,"ROZPOCET",null,null,null,null,null,{"$f":"IF(N235=\"základní\",J235,0)","v":0},{"$f":"IF(N235=\"snížená\",J235,0)","v":0},{"$f":"IF(N235=\"zákl. přenesená\",J235,0)","v":0},{"$f":"IF(N235=\"sníž. přenesená\",J235,0)","v":0},{"$f":"IF(N235=\"nulová\",J235,0)","v":0},"1",{"$f":"ROUND(I235*H235,2)","v":0},"4","1618106487"]
[null,null,"65","M","422913520","poklop litinový-šoupátkový s logem VaK - DODÁVKA VaK MB","kus",1,null,{"$f":"ROUND(I236*H236,2)","v":0},"",null,"","základní",null,{"$f":"O236*H236","v":0},1.3299999999999999E-2,{"$f":"Q236*H236","v":1.3299999999999999E-2},0,{"$f":"S236*H236","v":0},null,null,null,null,null,null,null,null,null,null,null,null,null,null,null,null,null,null,null,null,null,null,null,"8",null,"M","2",null,null,null,"ROZPOCET",null,null,null,null,null,{"$f":"IF(N236=\"základní\",J236,0)","v":0},{"$f":"IF(N236=\"snížená\",J236,0)","v":0},{"$f":"IF(N236=\"zákl. přenesená\",J236,0)","v":0},{"$f":"IF(N236=\"sníž. přenesená\",J236,0)","v":0},{"$f":"IF(N236=\"nulová\",J236,0)","v":0},"1",{"$f":"ROUND(I236*H236,2)","v":0},"4","937097892"]
[null,null,null,"D","9","Ostatní konstrukce a práce, bourání",null,null,null,{"$f":"BK237","v":0},null,null,null,null,null,{"$f":"SUM(P238:P248)","v":0},null,{"$f":"SUM(R238:R248)","v":6.9539999999999991E-2},null,{"$f":"SUM(T238:T248)","v":0},null,null,null,null,null,null,null,null,null,null,null,null,null,null,null,null,null,null,null,null,null,null,null,"1",null,"D","1",null,null,null,"ROZPOCET",null,null,null,null,null,null,null,null,null,null,null,{"$f":"SUM(BK238:BK248)","v":0}]
[null,null,"66","K","919732211","Styčná pracovní spára při napojení nového živičného povrchu na stávající se zalitím za tepla modifikovanou asfaltovou hmotou s posypem vápenným hydrátem šířky do 15 mm, hloubky do 25 mm včetně prořezání spáry","m",114,null,{"$f":"ROUND(I238*H238,2)","v":0},"CS ÚRS 2022 01",null,"","základní",null,{"$f":"O238*H238","v":0},6.0999999999999997E-4,{"$f":"Q238*H238","v":6.9539999999999991E-2},0,{"$f":"S238*H238","v":0},null,null,null,null,null,null,null,null,null,null,null,null,null,null,null,null,null,null,null,null,null,null,null,"4",null,"K","2",null,null,null,"ROZPOCET",null,null,null,null,null,{"$f":"IF(N238=\"základní\",J238,0)","v":0},{"$f":"IF(N238=\"snížená\",J238,0)","v":0},{"$f":"IF(N238=\"zákl. přenesená\",J238,0)","v":0},{"$f":"IF(N238=\"sníž. přenesená\",J238,0)","v":0},{"$f":"IF(N238=\"nulová\",J238,0)","v":0},"1",{"$f":"ROUND(I238*H238,2)","v":0},"4","1910928865"]
[null,null,null,"Online PSC",null,"https://podminky.urs.cz/item/CS_URS_2022_01/919732211",null,null,null,null,null,null,null,null,null,null,null,null,null,null,null,null,null,null,null,null,null,null,null,null,null,null,null,null,null,null,null,null,null,null,null,null,null,null,null,"Online PSC","2"]
[null,null,null,"VV","","8,50+7,50+6,0+92,0",null,114,null,null,null,null,null,null,null,null,null,null,null,null,null,null,null,null,null,null,null,null,null,null,null,null,null,null,null,null,null,null,null,null,null,null,null,null,null,"VV","2","2","True","1","ROZPOCET"]
[null,null,"67","K","919735111","Řezání stávajícího živičného krytu nebo podkladu hloubky do 50 mm","m",228,null,{"$f":"ROUND(I241*H241,2)","v":0},"CS ÚRS 2022 01",null,"","základní",null,{"$f":"O241*H241","v":0},0,{"$f":"Q241*H241","v":0},0,{"$f":"S241*H241","v":0},null,null,null,null,null,null,null,null,null,null,null,null,null,null,null,null,null,null,null,null,null,null,null,"4",null,"K","2",null,null,null,"ROZPOCET",null,null,null,null,null,{"$f":"IF(N241=\"základní\",J241,0)","v":0},{"$f":"IF(N241=\"snížená\",J241,0)","v":0},{"$f":"IF(N241=\"zákl. přenesená\",J241,0)","v":0},{"$f":"IF(N241=\"sníž. přenesená\",J241,0)","v":0},{"$f":"IF(N241=\"nulová\",J241,0)","v":0},"1",{"$f":"ROUND(I241*H241,2)","v":0},"4","978167482"]
[null,null,null,"Online PSC",null,"https://podminky.urs.cz/item/CS_URS_2022_01/919735111",null,null,null,null,null,null,null,null,null,null,null,null,null,null,null,null,null,null,null,null,null,null,null,null,null,null,null,null,null,null,null,null,null,null,null,null,null,null,null,"Online PSC","2"]
[null,null,null,"VV","","8,50+7,50+6,0+92,0 \"- obrusné asfaltové vrstvy\"",null,114,null,null,null,null,null,null,null,null,null,null,null,null,null,null,null,null,null,null,null,null,null,null,null,null,null,null,null,null,null,null,null,null,null,null,null,null,null,"VV","2","2","True","0","ROZPOCET"]
[null,null,null,"VV","","8,50+7,50+6,0+92,0 \"- podkladní asfaltové vrstvy\"",null,114,null,null,null,null,null,null,null,null,null,null,null,null,null,null,null,null,null,null,null,null,null,null,null,null,null,null,null,null,null,null,null,null,null,null,null,null,null,"VV","2","2","True","0","ROZPOCET"]
[null,null,null,"VV","","Součet",null,228,null,null,null,null,null,null,null,null,null,null,null,null,null,null,null,null,null,null,null,null,null,null,null,null,null,null,null,null,null,null,null,null,null,null,null,null,null,"VV","2","4","True","1","ROZPOCET"]
[null,null,"68","K","919735112","Řezání stávajícího živičného krytu nebo podkladu hloubky přes 50 do 100 mm","m",114,null,{"$f":"ROUND(I246*H246,2)","v":0},"CS ÚRS 2022 01",null,"","základní",null,{"$f":"O246*H246","v":0},0,{"$f":"Q246*H246","v":0},0,{"$f":"S246*H246","v":0},null,null,null,null,null,null,null,null,null,null,null,null,null,null,null,null,null,null,null,null,null,null,null,"4",null,"K","2",null,null,null,"ROZPOCET",null,null,null,null,null,{"$f":"IF(N246=\"základní\",J246,0)","v":0},{"$f":"IF(N246=\"snížená\",J246,0)","v":0},{"$f":"IF(N246=\"zákl. přenesená\",J246,0)","v":0},{"$f":"IF(N246=\"sníž. přenesená\",J246,0)","v":0},{"$f":"IF(N246=\"nulová\",J246,0)","v":0},"1",{"$f":"ROUND(I246*H246,2)","v":0},"4","-1187956580"]
[null,null,null,"Online PSC",null,"https://podminky.urs.cz/item/CS_URS_2022_01/919735112",null,null,null,null,null,null,null,null,null,null,null,null,null,null,null,null,null,null,null,null,null,null,null,null,null,null,null,null,null,null,null,null,null,null,null,null,null,null,null,"Online PSC","2"]
[null,null,null,"VV","","8,50+7,50+6,0+92,0 \"- ložní asfaltové vrstvy\"",null,114,null,null,null,null,null,null,null,null,null,null,null,null,null,null,null,null,null,null,null,null,null,null,null,null,null,null,null,null,null,null,null,null,null,null,null,null,null,"VV","2","2","True","1","ROZPOCET"]
[null,null,null,"D","998","Přesun hmot",null,null,null,{"$f":"BK249","v":0},null,null,null,null,null,{"$f":"SUM(P250:P260)","v":0},null,{"$f":"SUM(R250:R260)","v":0},null,{"$f":"SUM(T250:T260)","v":0},null,null,null,null,null,null,null,null,null,null,null,null,null,null,null,null,null,null,null,null,null,null,null,"1",null,"D","1",null,null,null,"ROZPOCET",null,null,null,null,null,null,null,null,null,null,null,{"$f":"SUM(BK250:BK260)","v":0}]
[null,null,"69","K","998273102","Přesun hmot pro trubní vedení z trub litinových otevřený výkop","t",1469.4069999999999,null,{"$f":"ROUND(I250*H250,2)","v":0},"CS ÚRS 2016 01",null,"","základní",null,{"$f":"O250*H250","v":0},0,{"$f":"Q250*H250","v":0},0,{"$f":"S250*H250","v":0},null,null,null,null,null,null,null,null,null,null,null,null,null,null,null,null,null,null,null,null,null,null,null,"4",null,"K","2",null,null,null,"ROZPOCET",null,null,null,null,null,{"$f":"IF(N250=\"základní\",J250,0)","v":0},{"$f":"IF(N250=\"snížená\",J250,0)","v":0},{"$f":"IF(N250=\"zákl. přenesená\",J250,0)","v":0},{"$f":"IF(N250=\"sníž. přenesená\",J250,0)","v":0},{"$f":"IF(N250=\"nulová\",J250,0)","v":0},"1",{"$f":"ROUND(I250*H250,2)","v":0},"4","493580547"]
[null,null,"70","K","997221571R","Vodorovná doprava vybouraných hmot - odpadu asfaltového s nebo bez obsahu nebezpečných látek","t",65.941000000000003,null,{"$f":"ROUND(I251*H251,2)","v":0},"",null,"","základní",null,{"$f":"O251*H251","v":0},0,{"$f":"Q251*H251","v":0},0,{"$f":"S251*H251","v":0},null,null,null,null,null,null,null,null,null,null,null,null,null,null,null,null,null,null,null,null,null,null,null,"4",null,"K","2",null,null,null,"ROZPOCET",null,null,null,null,null,{"$f":"IF(N251=\"základní\",J251,0)","v":0},{"$f":"IF(N251=\"snížená\",J251,0)","v":0},{"$f":"IF(N251=\"zákl. přenesená\",J251,0)","v":0},{"$f":"IF(N251=\"sníž. přenesená\",J251,0)","v":0},{"$f":"IF(N251=\"nulová\",J251,0)","v":0},"1",{"$f":"ROUND(I251*H251,2)","v":0},"4","-1519493068"]
[null,null,null,"VV","","31,786+11,385+22,770",null,65.941000000000003,null,null,null,null,null,null,null,null,null,null,null,null,null,null,null,null,null,null,null,null,null,null,null,null,null,null,null,null,null,null,null,null,null,null,null,null,null,"VV","2","2","True","1","ROZPOCET"]
[null,null,"71","K","997221579R","Vodorovná doprava vybouraných hmot do suti (směsný stavební odpad)","t",90.974000000000004,null,{"$f":"ROUND(I253*H253,2)","v":0},"",null,"","základní",null,{"$f":"O253*H253","v":0},0,{"$f":"Q253*H253","v":0},0,{"$f":"S253*H253","v":0},null,null,null,null,null,null,null,null,null,null,null,null,null,null,null,null,null,null,null,null,null,null,null,"4",null,"K","2",null,null,null,"ROZPOCET",null,null,null,null,null,{"$f":"IF(N253=\"základní\",J253,0)","v":0},{"$f":"IF(N253=\"snížená\",J253,0)","v":0},{"$f":"IF(N253=\"zákl. přenesená\",J253,0)","v":0},{"$f":"IF(N253=\"sníž. přenesená\",J253,0)","v":0},{"$f":"IF(N253=\"nulová\",J253,0)","v":0},"1",{"$f":"ROUND(I253*H253,2)","v":0},"4","302642722"]
[null,null,null,"VV","","156,915-65,941",null,90.974000000000004,null,null,null,null,null,null,null,null,null,null,null,null,null,null,null,null,null,null,null,null,null,null,null,null,null,null,null,null,null,null,null,null,null,null,null,null,null,"VV","2","2","True","1","ROZPOCET"]
[null,null,"72","K","997221645R","Poplatek za uložení na skládce (skládkovné) odpadu asfaltového s obsahem nebezpečných látek","t",65.941000000000003,null,{"$f":"ROUND(I255*H255,2)","v":0},"",null,"","základní",null,{"$f":"O255*H255","v":0},0,{"$f":"Q255*H255","v":0},0,{"$f":"S255*H255","v":0},null,null,null,null,null,null,null,null,null,null,null,null,null,null,null,null,null,null,null,null,null,null,null,"4",null,"K","2",null,null,null,"ROZPOCET",null,null,null,null,null,{"$f":"IF(N255=\"základní\",J255,0)","v":0},{"$f":"IF(N255=\"snížená\",J255,0)","v":0},{"$f":"IF(N255=\"zákl. přenesená\",J255,0)","v":0},{"$f":"IF(N255=\"sníž. přenesená\",J255,0)","v":0},{"$f":"IF(N255=\"nulová\",J255,0)","v":0},"1",{"$f":"ROUND(I255*H255,2)","v":0},"4","-1505343131"]
[null,null,null,"VV","","31,786+11,385+22,770",null,65.941000000000003,null,null,null,null,null,null,null,null,null,null,null,null,null,null,null,null,null,null,null,null,null,null,null,null,null,null,null,null,null,null,null,null,null,null,null,null,null,"VV","2","2","True","1","ROZPOCET"]
[null,null,"73","K","997221655R","Poplatek za uložení na skládce (skládkovné) vybouraných hmot do suti (směsný stavební odpad)","t",90.974000000000004,null,{"$f":"ROUND(I257*H257,2)","v":0},"",null,"","základní",null,{"$f":"O257*H257","v":0},0,{"$f":"Q257*H257","v":0},0,{"$f":"S257*H257","v":0},null,null,null,null,null,null,null,null,null,null,null,null,null,null,null,null,null,null,null,null,null,null,null,"4",null,"K","2",null,null,null,"ROZPOCET",null,null,null,null,null,{"$f":"IF(N257=\"základní\",J257,0)","v":0},{"$f":"IF(N257=\"snížená\",J257,0)","v":0},{"$f":"IF(N257=\"zákl. přenesená\",J257,0)","v":0},{"$f":"IF(N257=\"sníž. přenesená\",J257,0)","v":0},{"$f":"IF(N257=\"nulová\",J257,0)","v":0},"1",{"$f":"ROUND(I257*H257,2)","v":0},"4","1935052935"]
[null,null,null,"VV","","156,915-65,941",null,90.974000000000004,null,null,null,null,null,null,null,null,null,null,null,null,null,null,null,null,null,null,null,null,null,null,null,null,null,null,null,null,null,null,null,null,null,null,null,null,null,"VV","2","2","True","1","ROZPOCET"]
[null,null,"74","K","998225111","Přesun hmot pro komunikace s krytem z kameniva, monolitickým betonovým nebo živičným dopravní vzdálenost do 200 m jakékoliv délky objektu","t",23.92,null,{"$f":"ROUND(I259*H259,2)","v":0},"",null,"","základní",null,{"$f":"O259*H259","v":0},0,{"$f":"Q259*H259","v":0},0,{"$f":"S259*H259","v":0},null,null,null,null,null,null,null,null,null,null,null,null,null,null,null,null,null,null,null,null,null,null,null,"4",null,"K","2",null,null,null,"ROZPOCET",null,null,null,null,null,{"$f":"IF(N259=\"základní\",J259,0)","v":0},{"$f":"IF(N259=\"snížená\",J259,0)","v":0},{"$f":"IF(N259=\"zákl. přenesená\",J259,0)","v":0},{"$f":"IF(N259=\"sníž. přenesená\",J259,0)","v":0},{"$f":"IF(N259=\"nulová\",J259,0)","v":0},"1",{"$f":"ROUND(I259*H259,2)","v":0},"4","1796456219"]
[null,null,null,"VV","","0,014+0,031+23,805+0,070",null,23.92,null,null,null,null,null,null,null,null,null,null,null,null,null,null,null,null,null,null,null,null,null,null,null,null,null,null,null,null,null,null,null,null,null,null,null,null,null,"VV","2","2","True","1","ROZPOCET"]
[null,null,null,"D","VRN","Vedlejší a ostatní rozpočtové náklady",null,null,null,{"$f":"BK261","v":0},null,null,null,null,null,{"$f":"P262+P267+P275+P280","v":0},null,{"$f":"R262+R267+R275+R280","v":0},null,{"$f":"T262+T267+T275+T280","v":0},null,null,null,null,null,null,null,null,null,null,null,null,null,null,null,null,null,null,null,null,null,null,null,"5",null,"D","0",null,null,null,"ROZPOCET",null,null,null,null,null,null,null,null,null,null,null,{"$f":"BK262+BK267+BK275+BK280","v":0}]
[null,null,null,"D","VRN1","Průzkumné, geodetické a projektové práce",null,null,null,{"$f":"BK262","v":0},null,null,null,null,null,{"$f":"SUM(P263:P266)","v":0},null,{"$f":"SUM(R263:R266)","v":0},null,{"$f":"SUM(T263:T266)","v":0},null,null,null,null,null,null,null,null,null,null,null,null,null,null,null,null,null,null,null,null,null,null,null,"5",null,"D","1",null,null,null,"ROZPOCET",null,null,null,null,null,null,null,null,null,null,null,{"$f":"SUM(BK263:BK266)","v":0}]
[null,null,"75","K","012103000","Geodetické práce před výstavbou-vytýčení stavby","",1,null,{"$f":"ROUND(I263*H263,2)","v":0},"CS ÚRS 2013 01",null,"","základní",null,{"$f":"O263*H263","v":0},0,{"$f":"Q263*H263","v":0},0,{"$f":"S263*H263","v":0},null,null,null,null,null,null,null,null,null,null,null,null,null,null,null,null,null,null,null,null,null,null,null,"1024",null,"K","2",null,null,null,"ROZPOCET",null,null,null,null,null,{"$f":"IF(N263=\"základní\",J263,0)","v":0},{"$f":"IF(N263=\"snížená\",J263,0)","v":0},{"$f":"IF(N263=\"zákl. přenesená\",J263,0)","v":0},{"$f":"IF(N263=\"sníž. přenesená\",J263,0)","v":0},{"$f":"IF(N263=\"nulová\",J263,0)","v":0},"1",{"$f":"ROUND(I263*H263,2)","v":0},"1024","862957244"]
[null,null,"76","K","012203000","Geodetické práce při provádění stavby-zaměření skutečného provedení","",1,null,{"$f":"ROUND(I264*H264,2)","v":0},"CS ÚRS 2013 01",null,"","základní",null,{"$f":"O264*H264","v":0},0,{"$f":"Q264*H264","v":0},0,{"$f":"S264*H264","v":0},null,null,null,null,null,null,null,null,null,null,null,null,null,null,null,null,null,null,null,null,null,null,null,"1024",null,"K","2",null,null,null,"ROZPOCET",null,null,null,null,null,{"$f":"IF(N264=\"základní\",J264,0)","v":0},{"$f":"IF(N264=\"snížená\",J264,0)","v":0},{"$f":"IF(N264=\"zákl. přenesená\",J264,0)","v":0},{"$f":"IF(N264=\"sníž. přenesená\",J264,0)","v":0},{"$f":"IF(N264=\"nulová\",J264,0)","v":0},"1",{"$f":"ROUND(I264*H264,2)","v":0},"1024","598050004"]
[null,null,"77","K","012303000","Geodetické práce po výstavbě-zpracování skutečného provedení","",1,null,{"$f":"ROUND(I265*H265,2)","v":0},"CS ÚRS 2013 01",null,"","základní",null,{"$f":"O265*H265","v":0},0,{"$f":"Q265*H265","v":0},0,{"$f":"S265*H265","v":0},null,null,null,null,null,null,null,null,null,null,null,null,null,null,null,null,null,null,null,null,null,null,null,"1024",null,"K","2",null,null,null,"ROZPOCET",null,null,null,null,null,{"$f":"IF(N265=\"základní\",J265,0)","v":0},{"$f":"IF(N265=\"snížená\",J265,0)","v":0},{"$f":"IF(N265=\"zákl. přenesená\",J265,0)","v":0},{"$f":"IF(N265=\"sníž. přenesená\",J265,0)","v":0},{"$f":"IF(N265=\"nulová\",J265,0)","v":0},"1",{"$f":"ROUND(I265*H265,2)","v":0},"1024","-2124385331"]
[null,null,"78","K","013254000","Dokumentace skutečného provedení stavby","",1,null,{"$f":"ROUND(I266*H266,2)","v":0},"CS ÚRS 2013 01",null,"","základní",null,{"$f":"O266*H266","v":0},0,{"$f":"Q266*H266","v":0},0,{"$f":"S266*H266","v":0},null,null,null,null,null,null,null,null,null,null,null,null,null,null,null,null,null,null,null,null,null,null,null,"1024",null,"K","2",null,null,null,"ROZPOCET",null,null,null,null,null,{"$f":"IF(N266=\"základní\",J266,0)","v":0},{"$f":"IF(N266=\"snížená\",J266,0)","v":0},{"$f":"IF(N266=\"zákl. přenesená\",J266,0)","v":0},{"$f":"IF(N266=\"sníž. přenesená\",J266,0)","v":0},{"$f":"IF(N266=\"nulová\",J266,0)","v":0},"1",{"$f":"ROUND(I266*H266,2)","v":0},"1024","-966244972"]
[null,null,null,"D","VRN3","Zařízení staveniště",null,null,null,{"$f":"BK267","v":0},null,null,null,null,null,{"$f":"SUM(P268:P274)","v":0},null,{"$f":"SUM(R268:R274)","v":0},null,{"$f":"SUM(T268:T274)","v":0},null,null,null,null,null,null,null,null,null,null,null,null,null,null,null,null,null,null,null,null,null,null,null,"5",null,"D","1",null,null,null,"ROZPOCET",null,null,null,null,null,null,null,null,null,null,null,{"$f":"SUM(BK268:BK274)","v":0}]
[null,null,"79","K","031002000","Související práce pro zařízení staveniště-vytýčení inž.sítí","…",1,null,{"$f":"ROUND(I268*H268,2)","v":0},"CS ÚRS 2016 01",null,"","základní",null,{"$f":"O268*H268","v":0},0,{"$f":"Q268*H268","v":0},0,{"$f":"S268*H268","v":0},null,null,null,null,null,null,null,null,null,null,null,null,null,null,null,null,null,null,null,null,null,null,null,"1024",null,"K","2",null,null,null,"ROZPOCET",null,null,null,null,null,{"$f":"IF(N268=\"základní\",J268,0)","v":0},{"$f":"IF(N268=\"snížená\",J268,0)","v":0},{"$f":"IF(N268=\"zákl. přenesená\",J268,0)","v":0},{"$f":"IF(N268=\"sníž. přenesená\",J268,0)","v":0},{"$f":"IF(N268=\"nulová\",J268,0)","v":0},"1",{"$f":"ROUND(I268*H268,2)","v":0},"1024","-1440105304"]
[null,null,"80","K","032603000","Zařízení staveniště vybavení staveniště ostatní náklady","…",1,null,0,"CS ÚRS 2016 01",null,"","základní",null,0,0,0,0,0,null,null,null,null,null,null,null,null,null,null,null,null,null,null,null,null,null,null,null,null,null,null,null,"1024",null,"K","2",null,null,null,"ROZPOCET",null,null,null,null,null,0,0,0,0,0,"1",0,"1024","-1612403265"]
[null,null,"81","K","032903000","Zařízení staveniště vybavení staveniště náklady na provoz a údržbu vybavení staveniště","…",1,null,0,"CS ÚRS 2016 01",null,"","základní",null,0,0,0,0,0,null,null,null,null,null,null,null,null,null,null,null,null,null,null,null,null,null,null,null,null,null,null,null,"1024",null,"K","2",null,null,null,"ROZPOCET",null,null,null,null,null,0,0,0,0,0,"1",0,"1024","407912459"]
[null,null,"82","K","034203000","Oplocení staveniště neprůhlednými dílci v.2,0 m do patek v obci","",1,null,0,"CS ÚRS 2013 01",null,"","základní",null,0,0,0,0,0,null,null,null,null,null,null,null,null,null,null,null,null,null,null,null,null,null,null,null,null,null,null,null,"1024",null,"K","2",null,null,null,"ROZPOCET",null,null,null,null,null,0,0,0,0,0,"1",0,"1024","2022529674"]
[null,null,"83","K","034403000","Zařízení staveniště zabezpečení staveniště dopravní značení na staveništi","…",1,null,0,"CS ÚRS 2016 01",null,"","základní",null,0,0,0,0,0,null,null,null,null,null,null,null,null,null,null,null,null,null,null,null,null,null,null,null,null,null,null,null,"1024",null,"K","2",null,null,null,"ROZPOCET",null,null,null,null,null,0,0,0,0,0,"1",0,"1024","2002187320"]
[null,null,"84","K","034703000","Osvětlení staveniště","",1,null,0,"CS ÚRS 2013 01",null,"","základní",null,0,0,0,0,0,null,null,null,null,null,null,null,null,null,null,null,null,null,null,null,null,null,null,null,null,null,null,null,"1024",null,"K","2",null,null,null,"ROZPOCET",null,null,null,null,null,0,0,0,0,0,"1",0,"1024","-1844534893"]
[null,null,"85","K","039103000","Zařízení staveniště zrušení zařízení staveniště rozebrání, bourání a odvoz","…",1,null,0,"CS ÚRS 2016 01",null,"","základní",null,0,0,0,0,0,null,null,null,null,null,null,null,null,null,null,null,null,null,null,null,null,null,null,null,null,null,null,null,"1024",null,"K","2",null,null,null,"ROZPOCET",null,null,null,null,null,0,0,0,0,0,"1",0,"1024","-977601377"]
[null,null,null,"D","VRN4","Inženýrská činnost",null,null,null,{"$f":"BK275","v":0},null,null,null,null,null,{"$f":"SUM(P276:P279)","v":0},null,{"$f":"SUM(R276:R279)","v":0},null,{"$f":"SUM(T276:T279)","v":0},null,null,null,null,null,null,null,null,null,null,null,null,null,null,null,null,null,null,null,null,null,null,null,"5",null,"D","1",null,null,null,"ROZPOCET",null,null,null,null,null,null,null,null,null,null,null,{"$f":"SUM(BK276:BK279)","v":0}]
[null,null,"86","K","042903000","Ostatní posudky-krácený rozbor vody","",1,null,{"$f":"ROUND(I276*H276,2)","v":0},"CS ÚRS 2016 01",null,"","základní",null,{"$f":"O276*H276","v":0},0,{"$f":"Q276*H276","v":0},0,{"$f":"S276*H276","v":0},null,null,null,null,null,null,null,null,null,null,null,null,null,null,null,null,null,null,null,null,null,null,null,"1024",null,"K","2",null,null,null,"ROZPOCET",null,null,null,null,null,{"$f":"IF(N276=\"základní\",J276,0)","v":0},{"$f":"IF(N276=\"snížená\",J276,0)","v":0},{"$f":"IF(N276=\"zákl. přenesená\",J276,0)","v":0},{"$f":"IF(N276=\"sníž. přenesená\",J276,0)","v":0},{"$f":"IF(N276=\"nulová\",J276,0)","v":0},"1",{"$f":"ROUND(I276*H276,2)","v":0},"1024","-1253055411"]
[null,null,"87","K","043194000","Ostatní zkoušky-hutnící zkoušky statické po 50m","",11,null,{"$f":"ROUND(I277*H277,2)","v":0},"CS ÚRS 2016 01",null,"","základní",null,{"$f":"O277*H277","v":0},0,{"$f":"Q277*H277","v":0},0,{"$f":"S277*H277","v":0},null,null,null,null,null,null,null,null,null,null,null,null,null,null,null,null,null,null,null,null,null,null,null,"1024",null,"K","2",null,null,null,"ROZPOCET",null,null,null,null,null,{"$f":"IF(N277=\"základní\",J277,0)","v":0},{"$f":"IF(N277=\"snížená\",J277,0)","v":0},{"$f":"IF(N277=\"zákl. přenesená\",J277,0)","v":0},{"$f":"IF(N277=\"sníž. přenesená\",J277,0)","v":0},{"$f":"IF(N277=\"nulová\",J277,0)","v":0},"1",{"$f":"ROUND(I277*H277,2)","v":0},"1024","966519444"]
[null,null,"88","K","043203000","Měření monitoring bez rozlišení-fotodokumentace","…",1,null,{"$f":"ROUND(I278*H278,2)","v":0},"CS ÚRS 2016 01",null,"","základní",null,{"$f":"O278*H278","v":0},0,{"$f":"Q278*H278","v":0},0,{"$f":"S278*H278","v":0},null,null,null,null,null,null,null,null,null,null,null,null,null,null,null,null,null,null,null,null,null,null,null,"1024",null,"K","2",null,null,null,"ROZPOCET",null,null,null,null,null,{"$f":"IF(N278=\"základní\",J278,0)","v":0},{"$f":"IF(N278=\"snížená\",J278,0)","v":0},{"$f":"IF(N278=\"zákl. přenesená\",J278,0)","v":0},{"$f":"IF(N278=\"sníž. přenesená\",J278,0)","v":0},{"$f":"IF(N278=\"nulová\",J278,0)","v":0},"1",{"$f":"ROUND(I278*H278,2)","v":0},"1024","1003023176"]
[null,null,"89","K","045203000","Inženýrská činnost kompletační a koordinační činnost kompletační činnost","…",1,null,{"$f":"ROUND(I279*H279,2)","v":0},"CS ÚRS 2016 01",null,"","základní",null,{"$f":"O279*H279","v":0},0,{"$f":"Q279*H279","v":0},0,{"$f":"S279*H279","v":0},null,null,null,null,null,null,null,null,null,null,null,null,null,null,null,null,null,null,null,null,null,null,null,"1024",null,"K","2",null,null,null,"ROZPOCET",null,null,null,null,null,{"$f":"IF(N279=\"základní\",J279,0)","v":0},{"$f":"IF(N279=\"snížená\",J279,0)","v":0},{"$f":"IF(N279=\"zákl. přenesená\",J279,0)","v":0},{"$f":"IF(N279=\"sníž. přenesená\",J279,0)","v":0},{"$f":"IF(N279=\"nulová\",J279,0)","v":0},"1",{"$f":"ROUND(I279*H279,2)","v":0},"1024","-213887039"]
[null,null,null,"D","VRN9","Ostatní náklady",null,null,null,{"$f":"BK280","v":0},null,null,null,null,null,{"$f":"P281","v":0},null,{"$f":"R281","v":0},null,{"$f":"T281","v":0},null,null,null,null,null,null,null,null,null,null,null,null,null,null,null,null,null,null,null,null,null,null,null,"5",null,"D","1",null,null,null,"ROZPOCET",null,null,null,null,null,null,null,null,null,null,null,{"$f":"BK281","v":0}]
[null,null,"90","K","091003000","Ostatní požadavky-zvláštní požadavky na zhotovení, jinde neuvedené náklady (uchazeč podrobně rozepíše obsah položky pod oceněným výkazem výměr)","…",1,null,{"$f":"ROUND(I281*H281,2)","v":0},"CS ÚRS 2016 01",null,"","základní",null,{"$f":"O281*H281","v":0},0,{"$f":"Q281*H281","v":0},0,{"$f":"S281*H281","v":0},null,null,null,null,null,null,null,null,null,null,null,null,null,null,null,null,null,null,null,null,null,null,null,"1024",null,"K","2",null,null,null,"ROZPOCET",null,null,null,null,null,{"$f":"IF(N281=\"základní\",J281,0)","v":0},{"$f":"IF(N281=\"snížená\",J281,0)","v":0},{"$f":"IF(N281=\"zákl. přenesená\",J281,0)","v":0},{"$f":"IF(N281=\"sníž. přenesená\",J281,0)","v":0},{"$f":"IF(N281=\"nulová\",J281,0)","v":0},"1",{"$f":"ROUND(I281*H281,2)","v":0},"1024","-100420828"]

{"sheet":"Pokyny pro vyplnění","index":2,"n_rows":217,"n_cols":10,"rows_kept":217,"cut":false,"hidden":false,"merged":[[101,2,101,9],[121,2,121,9],[146,2,146,9],[164,2,164,9],[198,2,198,9],[199,7,199,9],[201,7,201,9],[202,7,202,9],[203,7,203,9],[204,7,204,9],[205,7,205,9],[207,7,207,9],[208,7,208,9],[209,7,209,9],[210,7,210,9],[211,7,211,9],[213,7,213,9],[214,7,214,9],[215,7,215,9],[216,7,216,9],[46,3,46,9],[47,4,47,9],[48,4,48,9],[49,4,49,9],[50,3,50,9],[51,2,51,9],[53,2,53,9],[54,2,54,9],[56,2,56,9],[57,3,57,9],[58,3,58,9],[59,3,59,9],[60,3,60,9],[61,3,61,9],[62,3,62,9],[64,3,64,9],[65,3,65,9],[66,3,66,9],[67,3,67,9],[68,3,68,9],[69,3,69,9],[74,2,74,9],[8,2,8,9],[9,3,9,9],[10,3,10,9],[14,3,14,9],[15,3,15,9],[16,3,16,9],[17,5,17,9],[18,5,18,9],[19,5,19,9],[20,5,20,9],[21,5,21,9],[22,5,22,9],[24,2,24,9],[25,2,25,9],[26,3,26,9],[27,3,27,9],[29,3,29,9],[30,3,30,9],[32,3,32,9],[43,6,43,9],[44,6,44,9],[2,2,2,9],[3,2,3,9],[5,2,5,9],[6,2,6,9],[38,6,38,9],[39,6,39,9],[40,6,40,9],[41,6,41,9],[42,6,42,9],[33,3,33,9],[34,3,34,9],[35,6,35,9],[36,6,36,9],[37,6,37,9]]}
[]
[]
[null,null,"Struktura údajů, formát souboru a metodika pro zpracování"]
[null,null,"Struktura"]
[]
[null,null,"Soubor je složen ze záložky Rekapitulace stavby a záložek s názvem soupisu prací pro jednotlivé objekty ve formátu XLSX. Každá ze záložek přitom obsahuje"]
[null,null,"ještě samostatné sestavy vymezené orámovaním a nadpisem sestavy."]
[]
[null,null,"Rekapitulace stavby obsahuje sestavu Rekapitulace stavby a Rekapitulace objektů stavby a soupisů prací."]
[null,null,null,"V sestavě Rekapitulace stavby jsou uvedeny informace identifikující předmět veřejné zakázky na stavební práce, KSO, CC-CZ, CZ-CPV, CZ-CPA a rekapitulaci "]
[null,null,null,"celkové nabídkové ceny uchazeče."]
[]
[null,null,null,"Termínem \"uchazeč\" (resp. zhotovitel) se myslí \"účastník zadávacího řízení\" ve smyslu zákona o zadávání veřejných zakázek. "]
[]
[null,null,null,"V sestavě Rekapitulace objektů stavby a soupisů prací je uvedena rekapitulace stavebních objektů, inženýrských objektů, provozních souborů,"]
[null,null,null,"vedlejších a ostatních nákladů a ostatních nákladů s rekapitulací nabídkové ceny za jednotlivé soupisy prací. Na základě údaje Typ je možné"]
[null,null,null,"identifikovat, zda se jedná o objekt nebo soupis prací pro daný objekt:"]
[null,null,null,null,"STA","Stavební objekt pozemní"]
[null,null,null,null,"ING","Stavební objekt inženýrský"]
[null,null,null,null,"PRO","Provozní soubor"]
[null,null,null,null,"VON","Vedlejší a ostatní náklady"]
[null,null,null,null,"OST","Ostatní"]
[null,null,null,null,"Soupis","Soupis prací pro daný typ objektu"]
[]
[null,null,"Soupis prací pro jednotlivé objekty obsahuje sestavy Krycí list soupisu prací, Rekapitulace členění soupisu prací, Soupis prací. Za soupis prací může být považován"]
[null,null,"i objekt stavby v případě, že neobsahuje podřízenou zakázku."]
[null,null,null,"Krycí list soupisu obsahuje rekapitulaci informací o předmětu veřejné zakázky ze sestavy Rekapitulace stavby, informaci o zařazení objektu do KSO, "]
[null,null,null,"CC-CZ, CZ-CPV, CZ-CPA a rekapitulaci celkové nabídkové ceny uchazeče za aktuální soupis prací."]
[]
[null,null,null,"Rekapitulace členění soupisu prací obsahuje rekapitulaci soupisu prací ve všech úrovních členění soupisu tak, jak byla tato členění použita (např. "]
[null,null,null,"stavební díly, funkční díly, případně jiné členění) s rekapitulací nabídkové ceny."]
[]
[null,null,null,"Soupis prací obsahuje položky veškerých stavebních nebo montážních prací, dodávek materiálů a služeb nezbytných pro zhotovení stavebního objektu,"]
[null,null,null,"inženýrského objektu, provozního souboru, vedlejších a ostatních nákladů."]
[null,null,null,"Pro položky soupisu prací se zobrazují následující informace:"]
[null,null,null,null,"PČ",null,"Pořadové číslo položky v aktuálním soupisu"]
[null,null,null,null,"TYP",null,"Typ položky: K - konstrukce, M - materiál, PP - plný popis, PSC - poznámka k souboru cen,  P - poznámka k položce, VV - výkaz výměr"]
[null,null,null,null,"Kód",null,"Kód položky"]
[null,null,null,null,"Popis",null,"Zkrácený popis položky"]
[null,null,null,null,"MJ",null,"Měrná jednotka položky"]
[null,null,null,null,"Množství",null,"Množství v měrné jednotce"]
[null,null,null,null,"J.cena",null,"Jednotková cena položky. Zadaní může obsahovat namísto J.ceny sloupce J.materiál a J.montáž, jejichž součet definuje "]
[null,null,null,null,null,null,"J.cenu položky."]
[null,null,null,null,"Cena celkem ",null,"Celková cena položky daná jako součin množství a j.ceny"]
[null,null,null,null,"Cenová soustava",null,"Příslušnost položky do cenové soustavy"]
[]
[null,null,null,"Ke každé položce soupisu prací se na samostatných řádcích může zobrazovat:"]
[null,null,null,null,"Plný popis položky"]
[null,null,null,null,"Poznámka k souboru cen a poznámka zadavatele"]
[null,null,null,null,"Výkaz výměr"]
[null,null,null,"Pokud je k řádku výkazu výměr evidovaný údaj ve sloupci Kód, jedná se o definovaný odkaz, na který se může odvolávat výkaz výměr z jiné položky."]
[null,null,"Metodika pro zpracování "]
[]
[null,null,"Jednotlivé sestavy jsou v souboru provázány. Editovatelné pole jsou zvýrazněny žlutým podbarvením, ostatní pole neslouží k editaci a nesmí být jakkoliv"]
[null,null,"modifikovány."]
[]
[null,null,"Uchazeč je pro podání nabídky povinen vyplnit žlutě podbarvená pole: "]
[null,null,null,"Pole Uchazeč v sestavě Rekapitulace stavby - zde uchazeč vyplní svůj název (název subjektu) "]
[null,null,null,"Pole IČ a DIČ v sestavě Rekapitulace stavby - zde uchazeč vyplní svoje IČ a DIČ"]
[null,null,null,"Datum v sestavě Rekapitulace stavby - zde uchazeč vyplní datum vytvoření nabídky"]
[null,null,null,"J.cena = jednotková cena v sestavě Soupis prací o maximálním počtu desetinných míst uvedených v poli"]
[null,null,null,"- pokud sestavy soupisů prací obsahují pole J.cena, měla by být všechna tato pole vyplněna nenulovými"]
[null,null,null,"Poznámka - nepovinný údaj pro položku soupisu"]
[]
[null,null,null,"V případě, že sestavy soupisů prací neobsahují pole J.cena, potom ve všech soupisech prací obsahují pole:"]
[null,null,null," - J.materiál - jednotková cena materiálu "]
[null,null,null," - J.montáž - jednotková cena montáže"]
[null,null,null,"Uchazeč v tomto případě by měl vyplnit všechna pole J.materiál a pole J.montáž nenulovými kladnými číslicemi. V případech, kdy položka"]
[null,null,null,"neobsahuje žádný materiál je přípustné, aby pole J.materiál bylo vyplněno nulou. V případech, kdy položka neobsahuje žádnou montáž je přípustné,"]
[null,null,null,"aby pole J.montáž bylo vyplněno nulou. Obě pole - J.materiál, J.Montáž u jedné položky by však neměly být vyplněny nulou."]
[]
[]
[]
[]
[null,null,"Rekapitulace stavby"]
[null,null,"Název",null,null,"Povinný",null,"Popis","Typ","Max. počet"]
[null,null,"atributu",null,null,"(A/N)",null,null,null,"znaků"]
[]
[null,null,"Kód",null,null,"A",null,"Kód stavby","String",20]
[null,null,"Stavba",null,null,"A",null,"Název stavby","String",120]
[null,null,"Místo",null,null,"N",null,"Místo stavby","String",50]
[null,null,"Datum",null,null,"A",null,"Datum vykonaného exportu","Date"]
[null,null,"KSO",null,null,"N",null,"Klasifikace stavebního objektu","String",15]
[null,null,"CC-CZ",null,null,"N",null,"Klasifikace stavbeních děl","String",15]
[null,null,"CZ-CPV",null,null,"N",null,"Společný slovník pro veřejné zakázky","String",20]
[null,null,"CZ-CPA",null,null,"N",null,"Klasifikace produkce podle činností","String",20]
[null,null,"Zadavatel",null,null,"N",null,"Zadavatel zadaní","String",50]
[null,null,"IČ",null,null,"N",null,"IČ zadavatele zadaní","String",20]
[null,null,"DIČ",null,null,"N",null,"DIČ zadavatele zadaní","String",20]
[null,null,"Uchazeč",null,null,"N",null,"Uchazeč veřejné zakázky","String",50]
[null,null,"Projektant",null,null,"N",null,"Projektant","String",50]
[null,null,"Poznámka",null,null,"N",null,"Poznámka k zadání","String",255]
[null,null,"Sazba DPH",null,null,"A",null,"Rekapitulace sazeb DPH u položek soupisů","eGSazbaDph"]
[null,null,"Základna DPH",null,null,"A",null,"Základna DPH určena součtem celkové ceny z položek soupisů","Double"]
[null,null,"Hodnota DPH",null,null,"A",null,"Hodnota DPH","Double"]
[null,null,"Cena bez DPH",null,null,"A",null,"Celková cena bez DPH za celou stavbu. Sčítává se ze všech listů.","Double"]
[null,null,"Cena s DPH",null,null,"A",null,"Celková cena s DPH za celou stavbu","Double"]
[]
[]
[]
[]
[null,null,"Rekapitulace objektů stavby a soupisů prací"]
[null,null,"Název",null,null,"Povinný",null,"Popis","Typ","Max. počet"]
[null,null,"atributu",null,null,"(A/N)",null,null,null,"znaků"]
[]
[null,null,"Kód",null,null,"A",null,"Přebírá se z Rekapitulace stavby","String",20]
[null,null,"Stavba",null,null,"A",null,"Přebírá se z Rekapitulace stavby","String",120]
[null,null,"Místo",null,null,"N",null,"Přebírá se z Rekapitulace stavby","String",50]
[null,null,"Datum",null,null,"A",null,"Přebírá se z Rekapitulace stavby","Date"]
[null,null,"Zadavatel",null,null,"N",null,"Přebírá se z Rekapitulace stavby","String",50]
[null,null,"Projektant",null,null,"N",null,"Přebírá se z Rekapitulace stavby","String",50]
[null,null,"Uchazeč",null,null,"N",null,"Přebírá se z Rekapitulace stavby","String",50]
[null,null,"Kód",null,null,"A",null,"Kód objektu","String",20]
[null,null,"Objektu, Soupis prací",null,null,"A",null,"Název objektu","String",120]
[null,null,"Cena bez DPH",null,null,"A",null,"Cena bez DPH za daný objekt","Double"]
[null,null,"Cena s DPH",null,null,"A",null,"Cena spolu s DPH za daný objekt","Double"]
[null,null,"Typ",null,null,"A",null,"Typ zakázky","eGTypZakazky"]
[]
[]
[]
[]
[null,null,"Krycí list soupisu"]
[null,null,"Název",null,null,"Povinný",null,"Popis","Typ","Max. počet"]
[null,null,"atributu",null,null,"(A/N)",null,null,null,"znaků"]
[]
[null,null,"Stavba",null,null,"A",null,"Přebírá se z Rekapitulace stavby","String",120]
[null,null,"Objekt",null,null,"A",null,"Kód a název objektu","String","20 + 120"]
[null,null,"Soupis",null,null,"A",null,"Kód a název soupisu","String","20 + 120"]
[null,null,"KSO",null,null,"N",null,"Klasifikace stavebního objektu","String",15]
[null,null,"CC-CZ",null,null,"N",null,"Klasifikace stavbeních děl","String",15]
[null,null,"CZ-CPV",null,null,"N",null,"Společný slovník pro veřejné zakázky","String",20]
[null,null,"CZ-CPA",null,null,"N",null,"Klasifikace produkce podle činností","String",20]
[null,null,"Místo",null,null,"N",null,"Přebírá se z Rekapitulace stavby","String",50]
[null,null,"Zadavatel",null,null,"N",null,"Přebírá se z Rekapitulace stavby","String",50]
[null,null,"Uchazeč",null,null,"N",null,"Přebírá se z Rekapitulace stavby","String",50]
[null,null,"Projektant",null,null,"N",null,"Přebírá se z Rekapitulace stavby","String",50]
[null,null,"Poznámka",null,null,"N",null,"Poznámka k soupisu prací","String",255]
[null,null,"Sazba DPH",null,null,"A",null,"Rekapitulace sazeb DPH na položkách aktuálního soupisu","eGSazbaDph"]
[null,null,"Základna DPH",null,null,"A",null,"Základna DPH určena součtem celkové ceny z položek aktuálního soupisu","Double"]
[null,null,"Hodnota DPH",null,null,"A",null,"Hodnota DPH","Double"]
[null,null,"Cena bez DPH",null,null,"A",null,"Cena bez DPH za daný soupis","Double"]
[null,null,"Cena s DPH",null,null,"A",null,"Cena s DPH za daný soupis","Double"]
[]
[]
[]
[]
[null,null,"Rekapitulace členění soupisu prací"]
[null,null,"Název",null,null,"Povinný",null,"Popis","Typ","Max. počet"]
[null,null,"atributu",null,null,"(A/N)",null,null,null,"znaků"]
[]
[null,null,"Stavba",null,null,"A",null,"Přebírá se z Rekapitulace stavby","String",120]
[null,null,"Objekt",null,null,"A",null,"Kód a název objektu, přebírá se z Krycího listu soupisu","String","20 + 120"]
[null,null,"Soupis",null,null,"A",null,"Kód a název objektu, přebírá se z Krycího listu soupisu","String","20 + 120"]
[null,null,"Místo",null,null,"N",null,"Přebírá se z Rekapitulace stavby","String",50]
[null,null,"Datum",null,null,"A",null,"Přebírá se z Rekapitulace stavby","Date"]
[null,null,"Zadavatel",null,null,"N",null,"Přebírá se z Rekapitulace stavby","String",50]
[null,null,"Projektant",null,null,"N",null,"Přebírá se z Rekapitulace stavby","String",50]
[null,null,"Uchazeč",null,null,"N",null,"Přebírá se z Rekapitulace stavby","String",50]
[null,null,"Kód dílu - Popis",null,null,"A",null,"Kód a název dílu ze soupisu","String","20 + 100"]
[null,null,"Cena celkem",null,null,"A",null,"Cena celkem za díl ze soupisu","Double"]
[]
[]
[]
[]
[null,null,"Soupis prací"]
[null,null,"Název",null,null,"Povinný",null,"Popis","Typ","Max. počet"]
[null,null,"atributu",null,null,"(A/N)",null,null,null,"znaků"]
[]
[null,null,"Stavba",null,null,"A",null,"Přebírá se z Rekapitulace stavby","String",120]
[null,null,"Objekt",null,null,"A",null,"Kód a název objektu","String","20 + 120"]
[null,null,"Soupis",null,null,"A",null,"Přebírá se z Krycího listu soupisu","String","20 + 120"]
[null,null,"Místo",null,null,"N",null,"Přebírá se z Krycího listu soupisu","String",50]
[null,null,"Datum",null,null,"A",null,"Přebírá se z Krycího listu soupisu","Date"]
[null,null,"Zadavatel",null,null,"N",null,"Přebírá se z Krycího listu soupisu","String",50]
[null,null,"Projektant",null,null,"N",null,"Přebírá se z Krycího listu soupisu","String",50]
[null,null,"Uchazeč",null,null,"N",null,"Přebírá se z Krycího listu soupisu","String",50]
[null,null,"PČ",null,null,"A",null,"Pořadové číslo položky soupisu","Long"]
[null,null,"Typ",null,null,"A",null,"Typ položky soupisu","eGTypPolozky",1]
[null,null,"Kód",null,null,"A",null,"Kód položky ze soupisu","String",20]
[null,null,"Popis",null,null,"A",null,"Popis položky ze soupisu","String",255]
[null,null,"MJ",null,null,"A",null,"Měrná jednotka položky","String",10]
[null,null,"Množství",null,null,"A",null,"Množství položky soupisu","Double"]
[null,null,"J.Cena",null,null,"A",null,"Jednotková cena položky","Double"]
[null,null,"Cena celkem",null,null,"A",null,"Cena celkem vyčíslena jako J.Cena * Množství","Double"]
[null,null,"Cenová soustava",null,null,"N",null,"Zařazení položky do cenové soustavy","String",50]
[null,null,"p",null,null,"N",null,"Poznámka položky ze soupisu","Memo"]
[null,null,"psc",null,null,"N",null,"Poznámka k souboru cen ze soupisu","Memo"]
[null,null,"pp",null,null,"N",null,"Plný popis položky ze soupisu","Memo"]
[null,null,"vv",null,null,"N",null,"Výkaz výměr (figura, výraz, výměra) ze soupisu","Text,Text,Double","20, 150"]
[null,null,"DPH",null,null,"A",null,"Sazba DPH pro položku","eGSazbaDPH"]
[null,null,"Hmotnost",null,null,"A",null,"Hmotnost položky ze soupisu","Double"]
[null,null,"Suť",null,null,"A",null,"Suť položky ze soupisu","Double"]
[null,null,"Nh",null,null,"N",null,"Normohodiny položky ze soupisu","Double"]
[]
[]
[]
[]
[]
[null,null,"Datová věta"]
[null,null,"Typ věty",null,null,"Hodnota",null,"Význam"]
[]
[null,null,"eGSazbaDPH",null,null,"základní",null,"Základní sazba DPH"]
[null,null,null,null,null,"snížená",null,"Snížená sazba DPH"]
[null,null,null,null,null,"nulová",null,"Nulová sazba DPH"]
[null,null,null,null,null,"zákl. přenesená",null,"Základní sazba DPH přenesená"]
[null,null,null,null,null,"sníž. přenesená",null,"Snížená sazba DPH přenesená"]
[]
[null,null,"eGTypZakazky",null,null,"STA",null,"Stavební objekt"]
[null,null,null,null,null,"PRO",null,"Provozní soubor"]
[null,null,null,null,null,"ING",null,"Inženýrský objekt"]
[null,null,null,null,null,"VON",null,"Vedlejší a ostatní náklady"]
[null,null,null,null,null,"OST",null,"Ostatní náklady"]
[]
[null,null,"eGTypPolozky",null,null,1,null,"Položka typu HSV"]
[null,null,null,null,null,2,null,"Položka typu PSV"]
[null,null,null,null,null,3,null,"Položka typu M"]
[null,null,null,null,null,4,null,"Položka typu OST"]